Workbook

Sheet Order Form
A1: INSTRUCTIONS: | L1: REMIT TO:
A3: Please fill in the required fields below, such as PO number, Sales Rep, Ship to and Bill to information. Enter the quantity that
A4: you are ordering of either Hardcover or the bundle option. The total will automatically calculate.
A5: If you are ordering eBooks, please fill out the access information on page 2. All eBooks are hosted by Big Timber Media.
A7: Once you have completed your selections, you can filter your order by any of the options on the header bar on
A8: page 3 (specific details on how to filter are embedded in a comment on the header bar) or you can click.
A9: on the Hide Order button at the bottom of the order. If processing is being requested, please mark an "x"
A10: next to the option you wish to order on page 166-167 and the total amount will automatically calculate.
A12: Please provide your specifications for processing, which will be kept on file.
A14: **Please include up to 10 substitute titles in case of availability issues at the bottom of this form**
A17: ORDER INFORMATION: | L17: ORDER TOTALS:
C19: PO Number: | O19: Subtotal: | P19: =AA6783 -> 0
O20: Shipping: | P20: FREE
C21: Sales Representative: | D21: Mike White (mikewhite@booklookindiana.com) | O21: Processing: | P21: =AA6804 -> 0
O22: Grand Total: | P22: =P19+P21 -> 0
A24: *BILL TO INFORMATION (* = REQUIRED INFORMATION): | L24: *SHIP TO INFORMATION (* = REQUIRED INFORMATION):
B26: *Organization: | L26: *Organization:
B27: Contact Name: | L27: Contact Name:
B28: *Address | L28: *Address
B29: *City: | L29: *City:
B30: *State: | G30: *Zip: | L30: *State: | R30: *Zip:
B32: *eMail Address: | L32: *eMail Address:
B33: *Phone Number | L33: *Phone Number
B34: Fax Number | L34: Fax Number
A38: eBOOK ACCESS INFORMATION:
G40: * = Required Fields If no information is given, J. Appleseed will create a Username / Password for you.
A47: *ADMINISTRATIVE ACCESS: | L47: IP Address Authentication (optional):
A48: Administrator access provides valuable usage statistics and resources. | L48: If we add your IP address information to your account, users who access your library onsite from the building will
L49: automatically be logged in. PLEASE NOTE: IP authentication is not an access option for organizations who use
C50: Username (1st choice): | L50: a private IP address or use a shared public IP address. Please consult with your network administrator if you are unsure.
L51: IP authentication does not work remotely (e.g. from home).
C52: Username (2nd choice):
L53: Provide the IP addressor range of network:
C54: Password:
L55: Does this IP address or range service multiple buildings or sites?
A56: *GENERAL ACCESS:
A57: This allows general reader access to your eBooks. General access credentials must be different from Administrator Access | N57: Yes | Q57: No
C59: Username (1st choice): | L59: Referring URL Address (optional):
L60: If your organization has a secure password protected site, we can put the URL of your site on our list of approved URLs,
C61: Username (2nd choice): | L61: and any time a user clicks on your library link from your site regardless of whether they are at school or at home they
L62: will be automatically logged in. Referring URLs must be unique to your institution, not shared by a district.
C63: Password:
L64: Provide the URL of the web page where the access link(s) will be posted:
A65: *MARC RECORDS ACCESS REQUIREMENTS:
A67: Instant Access
A68: (no username/password required to access) | L68: Does this IP address or range service multiple buildings or sites?
C70: Yes | F70: No | N70: Yes | Q70: No
A72: SPECIAL INSTRUCTIONS / COMMENTS:
A80: THANK YOU FOR YOUR ORDER!
A81: Season | B81: New | C81: eISBN | D81: HC ISBN | F81: Title | J81: Series | N81: HC List Price | O81: HC S/L Price | P81: Bundle Price | R81: HC Qty | T81: Bundle Qty | V81: HIDDEN HC Qty | W81: HIDDEN BUNDLE QTY | X81: HIDDEN TOTAL QTY | Y81: HIDDEN HC TOTAL | Z81: HIDDEN BUNDLE TOTAL | AA81: Total | AC81: Catalog Page Number | AD81: Dewey Number | AE81: Page Count | AF81: Reading Level (by Grade) | AG81: Subject | AH81: Language | AI81: Publisher | AJ81: Imprint | AK81: Copyright Year | AL81: Author | AM81: Illustrator | AN81: Guided Reading Level | AO81: AR Level | AP81: AR Points | AQ81: AR Quiz Level | AR81: Lexile Level
J84: FRONTLIST TITLES
J85: Sorted by Publisher, Grade Level
J86: ( * = No samples/promotional materials available )
F89: Complete HC Series of 8 | J89: Science Frontiers | N89: =SUM(N90:N97) -> 250.8 | O89: =SUM(O90:O97) -> 175.6 | P89: =SUM(P90:P97) -> 215.6 | AI89: Amicus
A90: Spring 2017 | B90: NEW | C90: 9781621435143 | D90: 9781632353733 | F90: Battling Against Drug-Resistant Bacteria | J90: Science Frontiers | N90: 31.35 | O90: 21.95 | P90: 26.95 | R90: =R89 -> 0 | T90: =T89 -> 0 | V90: =R90 -> 0 | W90: =T90*2 -> 0 | X90: =SUM(V90:W90) -> 0 | Y90: =R90*O90 -> 0 | Z90: =T90*P90 -> 0 | AA90: =SUM(Y90:Z90) -> 0 | AC90: 14 | AD90: 616.9/201 | AE90: 32 | AF90: 3 - 5 | AG90: Science & Technology | AH90: English | AI90: Amicus | AJ90: 12-Story Library | AK90: 2017 | AL90: Tammy Gagne | AN90: U | AO90: 6.4 | AP90: 1 | AQ90: 183936 | AR90: 880L
A91: Spring 2017 | B91: NEW | C91: 9781621435150 | D91: 9781632353740 | F91: Building Better Robots | J91: Science Frontiers | N91: 31.35 | O91: 21.95 | P91: 26.95 | R91: =R89 -> 0 | T91: =T89 -> 0 | V91: =R91 -> 0 | W91: =T91*2 -> 0 | X91: =SUM(V91:W91) -> 0 | Y91: =R91*O91 -> 0 | Z91: =T91*P91 -> 0 | AA91: =SUM(Y91:Z91) -> 0 | AC91: 14 | AD91: 629.8/92 | AE91: 32 | AF91: 3 - 5 | AG91: Science & Technology | AH91: English | AI91: Amicus | AJ91: 12-Story Library | AK91: 2017 | AL91: Angie Smibert | AN91: U | AO91: 5.6 | AP91: 1 | AQ91: 183937 | AR91: 780L
A92: Spring 2017 | B92: NEW | C92: 9781621435167 | D92: 9781632353757 | F92: Curing Cancer | J92: Science Frontiers | N92: 31.35 | O92: 21.95 | P92: 26.95 | R92: =R89 -> 0 | T92: =T89 -> 0 | V92: 0 | W92: 0 | X92: 0 | Y92: 0 | Z92: 0 | AA92: 0 | AC92: 14 | AD92: 616.99/4 | AE92: 32 | AF92: 3 - 5 | AG92: Science & Technology | AH92: English | AI92: Amicus | AJ92: 12-Story Library | AK92: 2017 | AL92: Meg Marquardt | AN92: U | AO92: 6.2 | AP92: 1 | AQ92: 183938 | AR92: 860L
A93: Spring 2017 | B93: NEW | C93: 9781621435174 | D93: 9781632353764 | F93: Discovering the Origin of Human Life | J93: Science Frontiers | N93: 31.35 | O93: 21.95 | P93: 26.95 | R93: =R89 -> 0 | T93: =T89 -> 0 | V93: 0 | W93: 0 | X93: 0 | Y93: 0 | Z93: 0 | AA93: 0 | AC93: 14 | AD93: 569.9 | AE93: 32 | AF93: 3 - 5 | AG93: Science & Technology | AH93: English | AI93: Amicus | AJ93: 12-Story Library | AK93: 2017 | AL93: Todd Kortemeier | AN93: U | AO93: 5.5 | AP93: 1 | AQ93: 183939 | AR93: 740L
A94: Spring 2017 | B94: NEW | C94: 9781621435181 | D94: 9781632353771 | F94: Exploring the Depths of the Ocean | J94: Science Frontiers | N94: 31.35 | O94: 21.95 | P94: 26.95 | R94: =R89 -> 0 | T94: =T89 -> 0 | V94: 0 | W94: 0 | X94: 0 | Y94: 0 | Z94: 0 | AA94: 0 | AC94: 14 | AD94: 551.46 | AE94: 32 | AF94: 3 - 5 | AG94: Science & Technology | AH94: English | AI94: Amicus | AJ94: 12-Story Library | AK94: 2017 | AL94: Todd Kortemeier | AN94: U | AO94: 5.3 | AP94: 1 | AQ94: 183940 | AR94: 770L
A95: Spring 2017 | B95: NEW | C95: 9781621435198 | D95: 9781632353788 | F95: Finding an Energy Solution | J95: Science Frontiers | N95: 31.35 | O95: 21.95 | P95: 26.95 | R95: =R89 -> 0 | T95: =T89 -> 0 | V95: 0 | W95: 0 | X95: 0 | Y95: 0 | Z95: 0 | AA95: 0 | AC95: 14 | AD95: 333.79/4 | AE95: 32 | AF95: 3 - 5 | AG95: Science & Technology | AH95: English | AI95: Amicus | AJ95: 12-Story Library | AK95: 2017 | AL95: Todd Kortemeier | AN95: U | AO95: 5.8 | AP95: 1 | AQ95: 183941 | AR95: 810L
A96: Spring 2017 | B96: NEW | C96: 9781621435204 | D96: 9781632353795 | F96: Saving Endangered Species | J96: Science Frontiers | N96: 31.35 | O96: 21.95 | P96: 26.95 | R96: =R89 -> 0 | T96: =T89 -> 0 | V96: 0 | W96: 0 | X96: 0 | Y96: 0 | Z96: 0 | AA96: 0 | AC96: 14 | AD96: 333.95/22 | AE96: 32 | AF96: 3 - 5 | AG96: Science & Technology | AH96: English | AI96: Amicus | AJ96: 12-Story Library | AK96: 2017 | AL96: Todd Kortemeier | AN96: U | AO96: 5.7 | AP96: 1 | AQ96: 183942 | AR96: 790L
A97: Spring 2017 | B97: NEW | C97: 9781621435211 | D97: 9781632353801 | F97: Searching for Alien Life | J97: Science Frontiers | N97: 31.35 | O97: 21.95 | P97: 26.95 | R97: =R89 -> 0 | T97: =T89 -> 0 | V97: 0 | W97: 0 | X97: 0 | Y97: 0 | Z97: 0 | AA97: 0 | AC97: 14 | AD97: 576.8/39 | AE97: 32 | AF97: 3 - 5 | AG97: Science & Technology | AH97: English | AI97: Amicus | AJ97: 12-Story Library | AK97: 2017 | AL97: Todd Kortemeier | AN97: U | AO97: 5.4 | AP97: 1 | AQ97: 183943 | AR97: 760L
F99: Complete HC Series of 8 | J99: Science Myths, Busted! | N99: =SUM(N100:N107) -> 250.8 | O99: =SUM(O100:O107) -> 175.6 | P99: =SUM(P100:P107) -> 215.6 | AI99: Amicus
A100: Spring 2017 | B100: NEW | C100: 9781621434658 | D100: 9781632353009 | F100: Animal Myths, Busted! | J100: Science Myths, Busted! | N100: 31.35 | O100: 21.95 | P100: =O100+5 -> 26.95 | R100: =R99 -> 0 | T100: =T99 -> 0 | V100: =R100 -> 0 | W100: =T100*2 -> 0 | X100: =SUM(V100:W100) -> 0 | Y100: =R100*O100 -> 0 | Z100: =T100*P100 -> 0 | AA100: =SUM(Y100:Z100) -> 0 | AC100: 14 | AD100: 590.2 | AE100: 32 | AF100: 3 - 5 | AG100: Science & Technology | AH100: English | AI100: Amicus | AJ100: 12-Story Library | AK100: 2017 | AL100: Jodie Mangor | AN100: T | AO100: 4.7 | AP100: 1 | AQ100: 184015 | AR100: 700L
A101: Spring 2017 | B101: NEW | C101: 9781621434665 | D101: 9781632353016 | F101: Dinosaur Myths, Busted! | J101: Science Myths, Busted! | N101: 31.35 | O101: 21.95 | P101: 26.95 | R101: =R99 -> 0 | T101: =T99 -> 0 | V101: 0 | W101: 0 | X101: 0 | Y101: 0 | Z101: 0 | AA101: 0 | AC101: 14 | AD101: 567.902 | AE101: 32 | AF101: 3 - 5 | AG101: Science & Technology | AH101: English | AI101: Amicus | AJ101: 12-Story Library | AK101: 2017 | AL101: Arnold Ringstad | AN101: T | AO101: 5.6 | AP101: 1 | AQ101: 184016 | AR101: 760L
A102: Spring 2017 | B102: NEW | C102: 9781621434672 | D102: 9781632353023 | F102: Earth Myths, Busted! | J102: Science Myths, Busted! | N102: 31.35 | O102: 21.95 | P102: 26.95 | R102: =R99 -> 0 | T102: =T99 -> 0 | V102: 0 | W102: 0 | X102: 0 | Y102: 0 | Z102: 0 | AA102: 0 | AC102: 14 | AD102: 550.2 | AE102: 32 | AF102: 3 - 5 | AG102: Science & Technology | AH102: English | AI102: Amicus | AJ102: 12-Story Library | AK102: 2017 | AL102: Meg Marquardt | AN102: T | AO102: 5.3 | AP102: 1 | AQ102: 184017 | AR102: 710L
A103: Spring 2017 | B103: NEW | C103: 9781621434689 | D103: 9781632353030 | F103: Medical Myths, Busted! | J103: Science Myths, Busted! | N103: 31.35 | O103: 21.95 | P103: 26.95 | R103: =R99 -> 0 | T103: =T99 -> 0 | V103: 0 | W103: 0 | X103: 0 | Y103: 0 | Z103: 0 | AA103: 0 | AC103: 14 | AD103: 610.2 | AE103: 32 | AF103: 3 - 5 | AG103: Science & Technology | AH103: English | AI103: Amicus | AJ103: 12-Story Library | AK103: 2017 | AL103: Arnold Ringstad | AN103: T | AO103: 5.6 | AP103: 1 | AQ103: 184018 | AR103: 750L
A104: Spring 2017 | B104: NEW | C104: 9781621434696 | D104: 9781632353047 | F104: Nutrition Myths, Busted! | J104: Science Myths, Busted! | N104: 31.35 | O104: 21.95 | P104: 26.95 | R104: =R99 -> 0 | T104: =T99 -> 0 | V104: 0 | W104: 0 | X104: 0 | Y104: 0 | Z104: 0 | AA104: 0 | AC104: 14 | AD104: 613.202 | AE104: 32 | AF104: 3 - 5 | AG104: Science & Technology | AH104: English | AI104: Amicus | AJ104: 12-Story Library | AK104: 2017 | AL104: Marne Ventura | AN104: T | AO104: 5.6 | AP104: 1 | AQ104: 184019 | AR104: 830L
A105: Spring 2017 | B105: NEW | C105: 9781621434702 | D105: 9781632353054 | F105: Space Myths, Busted! | J105: Science Myths, Busted! | N105: 31.35 | O105: 21.95 | P105: 26.95 | R105: =R99 -> 0 | T105: =T99 -> 0 | V105: 0 | W105: 0 | X105: 0 | Y105: 0 | Z105: 0 | AA105: 0 | AC105: 14 | AD105: 520 | AE105: 32 | AF105: 3 - 5 | AG105: Science & Technology | AH105: English | AI105: Amicus | AJ105: 12-Story Library | AK105: 2017 | AL105: Angie Smibert | AN105: T | AO105: 5.6 | AP105: 1 | AQ105: 184020 | AR105: 780L
A106: Spring 2017 | B106: NEW | C106: 9781621434719 | D106: 9781632353061 | F106: Technology Myths, Busted! | J106: Science Myths, Busted! | N106: 31.35 | O106: 21.95 | P106: 26.95 | R106: =R99 -> 0 | T106: =T99 -> 0 | V106: 0 | W106: 0 | X106: 0 | Y106: 0 | Z106: 0 | AA106: 0 | AC106: 14 | AD106: 602 | AE106: 32 | AF106: 3 - 5 | AG106: Science & Technology | AH106: English | AI106: Amicus | AJ106: 12-Story Library | AK106: 2017 | AL106: Angie Smibert | AN106: T | AO106: 5.5 | AP106: 1 | AQ106: 184021 | AR106: 810L
A107: Spring 2017 | B107: NEW | C107: 9781621434726 | D107: 9781632353078 | F107: Weather Myths, Busted! | J107: Science Myths, Busted! | N107: 31.35 | O107: 21.95 | P107: 26.95 | R107: =R99 -> 0 | T107: =T99 -> 0 | V107: 0 | W107: 0 | X107: 0 | Y107: 0 | Z107: 0 | AA107: 0 | AC107: 14 | AD107: 551.6 | AE107: 32 | AF107: 3 - 5 | AG107: Science & Technology | AH107: English | AI107: Amicus | AJ107: 12-Story Library | AK107: 2017 | AL107: Carol Hand | AN107: T | AO107: 5.2 | AP107: 1 | AQ107: 184022 | AR107: 760L
F109: Complete HC Series of 8 | J109: Examining Primary Sources | N109: =SUM(N110:N117) -> 250.8 | O109: =SUM(O110:O117) -> 175.6 | P109: =SUM(P110:P117) -> 215.6 | AI109: Amicus
A110: Spring 2017 | B110: NEW | C110: 9781621434535 | D110: 9781632352866 | F110: 12 Questions about “Paul Revere’s Ride” | J110: Examining Primary Sources | N110: 31.35 | O110: 21.95 | P110: 26.95 | R110: =R109 -> 0 | T110: =T109 -> 0 | V110: =R110 -> 0 | W110: =T110*2 -> 0 | X110: =SUM(V110:W110) -> 0 | Y110: =R110*O110 -> 0 | Z110: =T110*P110 -> 0 | AA110: =SUM(Y110:Z110) -> 0 | AC110: 15 | AD110: 811/.3 | AE110: 32 | AF110: 3 - 5 | AG110: Social Studies | AH110: English | AI110: Amicus | AJ110: 12-Story Library | AK110: 2017 | AL110: Jamie Kallio | AN110: U | AO110: 5.8 | AP110: 1 | AQ110: 183924 | AR110: 860L
A111: Spring 2017 | B111: NEW | C111: 9781621434559 | D111: 9781632352880 | F111: 12 Questions about “The Star-Spangled Banner” | J111: Examining Primary Sources | N111: 31.35 | O111: 21.95 | P111: 26.95 | R111: =R109 -> 0 | T111: =T109 -> 0 | V111: 0 | W111: 0 | X111: 0 | Y111: 0 | Z111: 0 | AA111: 0 | AC111: 15 | AD111: 782.42/15990973 | AE111: 32 | AF111: 3 - 5 | AG111: Social Studies | AH111: English | AI111: Amicus | AJ111: 12-Story Library | AK111: 2017 | AL111: Jamie Kallio | AN111: U | AO111: 5.8 | AP111: 1 | AQ111: 183925 | AR111: 820L
A112: Spring 2017 | B112: NEW | C112: 9781621434542 | D112: 9781632352873 | F112: 12 Questions about Slave Narratives | J112: Examining Primary Sources | N112: 31.35 | O112: 21.95 | P112: 26.95 | R112: =R109 -> 0 | T112: =T109 -> 0 | V112: 0 | W112: 0 | X112: 0 | Y112: 0 | Z112: 0 | AA112: 0 | AC112: 15 | AD112: 306.3/620973 | AE112: 32 | AF112: 3 - 5 | AG112: Social Studies | AH112: English | AI112: Amicus | AJ112: 12-Story Library | AK112: 2017 | AL112: Lois Sepahban | AN112: U | AO112: 5.8 | AP112: 1 | AQ112: 183926 | AR112: 830L
A113: Spring 2017 | B113: NEW | C113: 9781621434498 | D113: 9781632352828 | F113: 12 Questions about the Bill of Rights | J113: Examining Primary Sources | N113: 31.35 | O113: 21.95 | P113: 26.95 | R113: =R109 -> 0 | T113: =T109 -> 0 | V113: 0 | W113: 0 | X113: 0 | Y113: 0 | Z113: 0 | AA113: 0 | AC113: 15 | AD113: 342.7308/5 | AE113: 32 | AF113: 3 - 5 | AG113: Social Studies | AH113: English | AI113: Amicus | AJ113: 12-Story Library | AK113: 2017 | AL113: Tracey E. Dils | AN113: U | AO113: 6 | AP113: 1 | AQ113: 183927 | AR113: 840L
A114: Spring 2017 | B114: NEW | C114: 9781621434504 | D114: 9781632352835 | F114: 12 Questions about the Declaration of Independence | J114: Examining Primary Sources | N114: 31.35 | O114: 21.95 | P114: 26.95 | R114: =R109 -> 0 | T114: =T109 -> 0 | V114: 0 | W114: 0 | X114: 0 | Y114: 0 | Z114: 0 | AA114: 0 | AC114: 15 | AD114: 973.3/13 | AE114: 32 | AF114: 3 - 5 | AG114: Social Studies | AH114: English | AI114: Amicus | AJ114: 12-Story Library | AK114: 2017 | AL114: Mirella S. Miller | AN114: U | AO114: 6.2 | AP114: 1 | AQ114: 183928 | AR114: 860L
A115: Spring 2017 | B115: NEW | C115: 9781621434511 | D115: 9781632352842 | F115: 12 Questions about the Gettysburg Address | J115: Examining Primary Sources | N115: 31.35 | O115: 21.95 | P115: 26.95 | R115: =R109 -> 0 | T115: =T109 -> 0 | V115: 0 | W115: 0 | X115: 0 | Y115: 0 | Z115: 0 | AA115: 0 | AC115: 15 | AD115: 973.7/349 | AE115: 32 | AF115: 3 - 5 | AG115: Social Studies | AH115: English | AI115: Amicus | AJ115: 12-Story Library | AK115: 2017 | AL115: Mirella S. Miller | AN115: U | AO115: 5.7 | AP115: 1 | AQ115: 183929 | AR115: 790L
A116: Spring 2017 | B116: NEW | C116: 9781621434528 | D116: 9781632352859 | F116: 12 Questions about the Indian Removal Act | J116: Examining Primary Sources | N116: 31.35 | O116: 21.95 | P116: 26.95 | R116: =R109 -> 0 | T116: =T109 -> 0 | V116: 0 | W116: 0 | X116: 0 | Y116: 0 | Z116: 0 | AA116: 0 | AC116: 15 | AD116: 342.7308/72 | AE116: 32 | AF116: 3 - 5 | AG116: Social Studies | AH116: English | AI116: Amicus | AJ116: 12-Story Library | AK116: 2017 | AL116: Tracey E. Dils | AN116: U | AO116: 5.7 | AP116: 1 | AQ116: 183930 | AR116: 800L
A117: Spring 2017 | B117: NEW | C117: 9781621434566 | D117: 9781632352897 | F117: 12 Questions about the US Constitution | J117: Examining Primary Sources | N117: 31.35 | O117: 21.95 | P117: 26.95 | R117: =R109 -> 0 | T117: =T109 -> 0 | V117: 0 | W117: 0 | X117: 0 | Y117: 0 | Z117: 0 | AA117: 0 | AC117: 15 | AD117: 342.7302 | AE117: 32 | AF117: 3 - 5 | AG117: Social Studies | AH117: English | AI117: Amicus | AJ117: 12-Story Library | AK117: 2017 | AL117: Kate Conley | AN117: U | AO117: 6 | AP117: 1 | AQ117: 183931 | AR117: 790L
F119: Complete HC Series of 8 | J119: Scary and Spooky | N119: =SUM(N120:N127) -> 250.8 | O119: =SUM(O120:O127) -> 175.6 | P119: =SUM(P120:P127) -> 215.6 | AI119: Amicus
A120: Spring 2017 | B120: NEW | C120: 9781621434573 | D120: 9781632352910 | F120: 12 Ancient Mysteries | J120: Scary and Spooky | N120: 31.35 | O120: 21.95 | P120: 26.95 | R120: =R119 -> 0 | T120: =T119 -> 0 | V120: =R120 -> 0 | W120: =T120*2 -> 0 | X120: =SUM(V120:W120) -> 0 | Y120: =R120*O120 -> 0 | Z120: =T120*P120 -> 0 | AA120: =SUM(Y120:Z120) -> 0 | AC120: 15 | AD120: 930.1 | AE120: 32 | AF120: 3 - 5 | AG120: Legends & Myths | AH120: English | AI120: Amicus | AJ120: 12-Story Library | AK120: 2017 | AL120: M. J. York | AN120: T | AP120: Not Quizable | AR120: 720L
A121: Spring 2017 | B121: NEW | C121: 9781621434580 | D121: 9781632352927 | F121: 12 Creepy Urban Legends | J121: Scary and Spooky | N121: 31.35 | O121: 21.95 | P121: 26.95 | R121: =R119 -> 0 | T121: =T119 -> 0 | V121: 0 | W121: 0 | X121: 0 | Y121: 0 | Z121: 0 | AA121: 0 | AC121: 15 | AD121: 398.2 | AE121: 32 | AF121: 3 - 5 | AG121: Legends & Myths | AH121: English | AI121: Amicus | AJ121: 12-Story Library | AK121: 2017 | AL121: Kenya McCullum | AN121: T | AP121: Not Quizable | AR121: 650L
A122: Spring 2017 | B122: NEW | C122: 9781621434597 | D122: 9781632352934 | F122: 12 Frightening Tales of Alien Encounters | J122: Scary and Spooky | N122: 31.35 | O122: 21.95 | P122: 26.95 | R122: =R119 -> 0 | T122: =T119 -> 0 | V122: 0 | W122: 0 | X122: 0 | Y122: 0 | Z122: 0 | AA122: 0 | AC122: 15 | AD122: 001.942 | AE122: 32 | AF122: 3 - 5 | AG122: Legends & Myths | AH122: English | AI122: Amicus | AJ122: 12-Story Library | AK122: 2017 | AL122: Brandon Terrell | AN122: T | AP122: Not Quizable | AR122: 840L
A123: Spring 2017 | B123: NEW | C123: 9781621434603 | D123: 9781632352941 | F123: 12 Notorious Ghosts | J123: Scary and Spooky | N123: 31.35 | O123: 21.95 | P123: 26.95 | R123: =R119 -> 0 | T123: =T119 -> 0 | V123: 0 | W123: 0 | X123: 0 | Y123: 0 | Z123: 0 | AA123: 0 | AC123: 15 | AD123: 133.1 | AE123: 32 | AF123: 3 - 5 | AG123: Legends & Myths | AH123: English | AI123: Amicus | AJ123: 12-Story Library | AK123: 2017 | AL123: Kenya McCullum | AN123: T | AP123: Not Quizable | AR123: 670L
A124: Spring 2017 | B124: NEW | C124: 9781621434610 | D124: 9781632352958 | F124: 12 Scary Animals | J124: Scary and Spooky | N124: 31.35 | O124: 21.95 | P124: 26.95 | R124: =R119 -> 0 | T124: =T119 -> 0 | V124: 0 | W124: 0 | X124: 0 | Y124: 0 | Z124: 0 | AA124: 0 | AC124: 15 | AD124: 591.6/5 | AE124: 32 | AF124: 3 - 5 | AG124: Legends & Myths | AH124: English | AI124: Amicus | AJ124: 12-Story Library | AK124: 2017 | AL124: Allan Morey | AN124: T | AP124: Not Quizable | AR124: 700L
A125: Spring 2017 | B125: NEW | C125: 9781621434627 | D125: 9781632352965 | F125: 12 Spooky Haunted Places | J125: Scary and Spooky | N125: 31.35 | O125: 21.95 | P125: 26.95 | R125: =R119 -> 0 | T125: =T119 -> 0 | V125: 0 | W125: 0 | X125: 0 | Y125: 0 | Z125: 0 | AA125: 0 | AC125: 15 | AD125: 133.109 | AE125: 32 | AF125: 3 - 5 | AG125: Legends & Myths | AH125: English | AI125: Amicus | AJ125: 12-Story Library | AK125: 2017 | AL125: Allan Morey | AN125: T | AP125: Not Quizable | AR125: 720L
A126: Spring 2017 | B126: NEW | C126: 9781621434634 | D126: 9781632352972 | F126: 12 Terrifying Monsters | J126: Scary and Spooky | N126: 31.35 | O126: 21.95 | P126: 26.95 | R126: =R119 -> 0 | T126: =T119 -> 0 | V126: 0 | W126: 0 | X126: 0 | Y126: 0 | Z126: 0 | AA126: 0 | AC126: 15 | AD126: 001.944 | AE126: 32 | AF126: 3 - 5 | AG126: Legends & Myths | AH126: English | AI126: Amicus | AJ126: 12-Story Library | AK126: 2017 | AL126: Allan Morey | AN126: T | AP126: Not Quizable | AR126: 670L
A127: Spring 2017 | B127: NEW | C127: 9781621434641 | D127: 9781632352989 | F127: 12 Unsolved Mysteries | J127: Scary and Spooky | N127: 31.35 | O127: 21.95 | P127: 26.95 | R127: =R119 -> 0 | T127: =T119 -> 0 | V127: 0 | W127: 0 | X127: 0 | Y127: 0 | Z127: 0 | AA127: 0 | AC127: 15 | AD127: 001.94 | AE127: 32 | AF127: 3 - 5 | AG127: Legends & Myths | AH127: English | AI127: Amicus | AJ127: 12-Story Library | AK127: 2017 | AL127: Brandon Terrell | AN127: T | AP127: Not Quizable | AR127: 800L
F129: Complete HC Series of 8 | J129: America at War | N129: =SUM(N130:N137) -> 250.8 | O129: =SUM(O130:O137) -> 175.6 | P129: =SUM(P130:P137) -> 215.6 | AI129: Amicus
A130: Spring 2017 | B130: NEW | C130: 9781621434337 | D130: 9781632352644 | F130: The American Revolution: 12 Things to Know | J130: America at War | N130: 31.35 | O130: 21.95 | P130: 26.95 | R130: =R129 -> 0 | T130: =T129 -> 0 | V130: =R130 -> 0 | W130: =T130*2 -> 0 | X130: =SUM(V130:W130) -> 0 | Y130: =R130*O130 -> 0 | Z130: =T130*P130 -> 0 | AA130: =SUM(Y130:Z130) -> 0 | AC130: 16 | AD130: 973.3 | AE130: 32 | AF130: 3 - 5 | AG130: Social Studies | AH130: English | AI130: Amicus | AJ130: 12-Story Library | AK130: 2017 | AL130: Peggy Caravantes | AN130: U | AO130: 5.7 | AP130: 1 | AQ130: 183944 | AR130: 770L
A131: Spring 2017 | B131: NEW | C131: 9781621434344 | D131: 9781632352651 | F131: The Civil War: 12 Things to Know | J131: America at War | N131: 31.35 | O131: 21.95 | P131: 26.95 | R131: =R129 -> 0 | T131: =T129 -> 0 | V131: 0 | W131: 0 | X131: 0 | Y131: 0 | Z131: 0 | AA131: 0 | AC131: 16 | AD131: 973.7 | AE131: 32 | AF131: 3 - 5 | AG131: Social Studies | AH131: English | AI131: Amicus | AJ131: 12-Story Library | AK131: 2017 | AL131: Patricia Hutchison | AN131: U | AO131: 5.8 | AP131: 1 | AQ131: 183945 | AR131: 770L
A132: Spring 2017 | B132: NEW | C132: 9781621434351 | D132: 9781632352668 | F132: The Iraq War: 12 Things to Know | J132: America at War | N132: 31.35 | O132: 21.95 | P132: 26.95 | R132: =R129 -> 0 | T132: =T129 -> 0 | V132: 0 | W132: 0 | X132: 0 | Y132: 0 | Z132: 0 | AA132: 0 | AC132: 16 | AD132: 956.7044/3 | AE132: 32 | AF132: 3 - 5 | AG132: Social Studies | AH132: English | AI132: Amicus | AJ132: 12-Story Library | AK132: 2017 | AL132: Jon Westmark | AN132: U | AO132: 5.9 | AP132: 1 | AQ132: 183946 | AR132: 790L
A133: Spring 2017 | B133: NEW | C133: 9781621434368 | D133: 9781632352675 | F133: The Vietnam War: 12 Things to Know | J133: America at War | N133: 31.35 | O133: 21.95 | P133: 26.95 | R133: =R129 -> 0 | T133: =T129 -> 0 | V133: 0 | W133: 0 | X133: 0 | Y133: 0 | Z133: 0 | AA133: 0 | AC133: 16 | AD133: 959.704/3 | AE133: 32 | AF133: 3 - 5 | AG133: Social Studies | AH133: English | AI133: Amicus | AJ133: 12-Story Library | AK133: 2017 | AL133: Jill Sherman | AN133: U | AO133: 5.7 | AP133: 1 | AQ133: 183947 | AR133: 760L
A134: Spring 2017 | B134: NEW | C134: 9781621434375 | D134: 9781632352682 | F134: The War in Afghanistan: 12 Things to Know | J134: America at War | N134: 31.35 | O134: 21.95 | P134: 26.95 | R134: =R129 -> 0 | T134: =T129 -> 0 | V134: 0 | W134: 0 | X134: 0 | Y134: 0 | Z134: 0 | AA134: 0 | AC134: 16 | AD134: 958.104/7 | AE134: 32 | AF134: 3 - 5 | AG134: Social Studies | AH134: English | AI134: Amicus | AJ134: 12-Story Library | AK134: 2017 | AL134: Clara MacCarald | AN134: U | AO134: 5.6 | AP134: 1 | AQ134: 183948 | AR134: 690L
A135: Spring 2017 | B135: NEW | C135: 9781621434382 | D135: 9781632352699 | F135: The War of 1812: 12 Things to Know | J135: America at War | N135: 31.35 | O135: 21.95 | P135: 26.95 | R135: =R129 -> 0 | T135: =T129 -> 0 | V135: 0 | W135: 0 | X135: 0 | Y135: 0 | Z135: 0 | AA135: 0 | AC135: 16 | AD135: 973.5/2 | AE135: 32 | AF135: 3 - 5 | AG135: Social Studies | AH135: English | AI135: Amicus | AJ135: 12-Story Library | AK135: 2017 | AL135: Bonnie Hinman | AN135: U | AO135: 5.6 | AP135: 1 | AQ135: 183949 | AR135: 800L
A136: Spring 2017 | B136: NEW | C136: 9781621434399 | D136: 9781632352705 | F136: World War I: 12 Things to Know | J136: America at War | N136: 31.35 | O136: 21.95 | P136: 26.95 | R136: =R129 -> 0 | T136: =T129 -> 0 | V136: 0 | W136: 0 | X136: 0 | Y136: 0 | Z136: 0 | AA136: 0 | AC136: 16 | AD136: 940.3 | AE136: 32 | AF136: 3 - 5 | AG136: Social Studies | AH136: English | AI136: Amicus | AJ136: 12-Story Library | AK136: 2017 | AL136: Bonnie Hinman | AN136: U | AO136: 5.8 | AP136: 1 | AQ136: 183950 | AR136: 810L
A137: Spring 2017 | B137: NEW | C137: 9781621434405 | D137: 9781632352712 | F137: World War II: 12 Things to Know | J137: America at War | N137: 31.35 | O137: 21.95 | P137: 26.95 | R137: =R129 -> 0 | T137: =T129 -> 0 | V137: 0 | W137: 0 | X137: 0 | Y137: 0 | Z137: 0 | AA137: 0 | AC137: 16 | AD137: 940.53 | AE137: 32 | AF137: 3 - 5 | AG137: Social Studies | AH137: English | AI137: Amicus | AJ137: 12-Story Library | AK137: 2017 | AL137: Patricia Hutchison | AN137: U | AO137: 5.3 | AP137: 1 | AQ137: 183951 | AR137: 730L
F139: Complete HC Series of 4 | J139: Unsung Heroes | N139: =SUM(N140:N143) -> 125.4 | O139: =SUM(O140:O143) -> 87.8 | P139: =SUM(P140:P143) -> 107.8 | AI139: Amicus
A140: Spring 2017 | B140: NEW | C140: 9781621434733 | D140: 9781632353092 | F140: Unsung Heroes of Science | J140: Unsung Heroes | N140: 31.35 | O140: 21.95 | P140: 26.95 | R140: =R139 -> 0 | T140: =T139 -> 0 | V140: =R140 -> 0 | W140: =T140*2 -> 0 | X140: =SUM(V140:W140) -> 0 | Y140: =R140*O140 -> 0 | Z140: =T140*P140 -> 0 | AA140: =SUM(Y140:Z140) -> 0 | AC140: 16 | AD140: 509.22 B | AE140: 32 | AF140: 3 - 5 | AG140: Biographies | AH140: English | AI140: Amicus | AJ140: 12-Story Library | AK140: 2017 | AL140: Todd Kortemeier | AN140: T | AO140: 5.4 | AP140: 1 | AQ140: 183932 | AR140: 700L
A141: Spring 2017 | B141: NEW | C141: 9781621434740 | D141: 9781632353108 | F141: Unsung Heroes of Social Justice | J141: Unsung Heroes | N141: 31.35 | O141: 21.95 | P141: 26.95 | R141: =R139 -> 0 | T141: =T139 -> 0 | V141: =R141 -> 0 | W141: =T141*2 -> 0 | X141: =SUM(V141:W141) -> 0 | Y141: =R141*O141 -> 0 | Z141: =T141*P141 -> 0 | AA141: =SUM(Y141:Z141) -> 0 | AC141: 16 | AD141: 323.092/273 | AE141: 32 | AF141: 3 - 5 | AG141: Biographies | AH141: English | AI141: Amicus | AJ141: 12-Story Library | AK141: 2017 | AL141: Todd Kortemeier | AN141: T | AO141: 5.4 | AP141: 1 | AQ141: 183933 | AR141: 710L
A142: Spring 2017 | B142: NEW | C142: 9781621434757 | D142: 9781632353115 | F142: Unsung Heroes of Technology | J142: Unsung Heroes | N142: 31.35 | O142: 21.95 | P142: 26.95 | R142: =R139 -> 0 | T142: =T139 -> 0 | V142: =R142 -> 0 | W142: =T142*2 -> 0 | X142: =SUM(V142:W142) -> 0 | Y142: =R142*O142 -> 0 | Z142: =T142*P142 -> 0 | AA142: =SUM(Y142:Z142) -> 0 | AC142: 16 | AD142: 609.22 | AE142: 32 | AF142: 3 - 5 | AG142: Biographies | AH142: English | AI142: Amicus | AJ142: 12-Story Library | AK142: 2017 | AL142: Todd Kortemeier | AN142: T | AO142: 5.3 | AP142: 1 | AQ142: 183934 | AR142: 700L
A143: Spring 2017 | B143: NEW | C143: 9781621434764 | D143: 9781632353122 | F143: Unsung Heroes of US History | J143: Unsung Heroes | N143: 31.35 | O143: 21.95 | P143: 26.95 | R143: =R139 -> 0 | T143: =T139 -> 0 | V143: =R143 -> 0 | W143: =T143*2 -> 0 | X143: =SUM(V143:W143) -> 0 | Y143: =R143*O143 -> 0 | Z143: =T143*P143 -> 0 | AA143: =SUM(Y143:Z143) -> 0 | AC143: 16 | AD143: 920.073 | AE143: 32 | AF143: 3 - 5 | AG143: Biographies | AH143: English | AI143: Amicus | AJ143: 12-Story Library | AK143: 2017 | AL143: Todd Kortemeier | AN143: T | AO143: 5.2 | AP143: 1 | AQ143: 183935 | AR143: 660L
F145: Complete HC Series of 8 | J145: Healthy Living | N145: =SUM(N146:N153) -> 250.8 | O145: =SUM(O146:O153) -> 175.6 | P145: =SUM(P146:P153) -> 215.6 | AI145: Amicus
A146: Spring 2017 | B146: NEW | C146: 9781621435068 | D146: 9781632353641 | F146: 12 Healthy Habits for Life | J146: Healthy Living | N146: 31.35 | O146: 21.95 | P146: 26.95 | R146: =R145 -> 0 | T146: =T145 -> 0 | V146: =R146 -> 0 | W146: =T146*2 -> 0 | X146: =SUM(V146:W146) -> 0 | Y146: =R146*O146 -> 0 | Z146: =T146*P146 -> 0 | AA146: =SUM(Y146:Z146) -> 0 | AC146: 17 | AD146: 613 | AE146: 32 | AF146: 3 - 5 | AG146: Animals & Nature | AH146: English | AI146: Amicus | AJ146: 12-Story Library | AK146: 2017 | AL146: Carol Hand | AN146: T | AP146: Not Quizable | AR146: 790L
A147: Spring 2017 | B147: NEW | C147: 9781621435075 | D147: 9781632353658 | F147: 12 Tips for a Healthy Diet | J147: Healthy Living | N147: 31.35 | O147: 21.95 | P147: 26.95 | R147: =R145 -> 0 | T147: =T145 -> 0 | V147: 0 | W147: 0 | X147: 0 | Y147: 0 | Z147: 0 | AA147: 0 | AC147: 17 | AD147: 613.2 | AE147: 32 | AF147: 3 - 5 | AG147: Animals & Nature | AH147: English | AI147: Amicus | AJ147: 12-Story Library | AK147: 2017 | AL147: Marne Ventura | AN147: T | AP147: Not Quizable | AR147: 770L
A148: Spring 2017 | B148: NEW | C148: 9781621435082 | D148: 9781632353665 | F148: 12 Tips for Managing Stress and Anxiety | J148: Healthy Living | N148: 31.35 | O148: 21.95 | P148: 26.95 | R148: =R145 -> 0 | T148: =T145 -> 0 | V148: 0 | W148: 0 | X148: 0 | Y148: 0 | Z148: 0 | AA148: 0 | AC148: 17 | AD148: 155.9/012 | AE148: 32 | AF148: 3 - 5 | AG148: Animals & Nature | AH148: English | AI148: Amicus | AJ148: 12-Story Library | AK148: 2017 | AL148: Maddie Spalding | AN148: T | AP148: Not Quizable | AR148: 650L
A149: Spring 2017 | B149: NEW | C149: 9781621435099 | D149: 9781632353672 | F149: 12 Tips for Staying Safe | J149: Healthy Living | N149: 31.35 | O149: 21.95 | P149: 26.95 | R149: =R145 -> 0 | T149: =T145 -> 0 | V149: 0 | W149: 0 | X149: 0 | Y149: 0 | Z149: 0 | AA149: 0 | AC149: 17 | AD149: 613.6071 | AE149: 32 | AF149: 3 - 5 | AG149: Animals & Nature | AH149: English | AI149: Amicus | AJ149: 12-Story Library | AK149: 2017 | AL149: Jamie Kallio | AN149: T | AP149: Not Quizable | AR149: 840L
A150: Spring 2017 | B150: NEW | C150: 9781621435105 | D150: 9781632353689 | F150: 12 Tips to Maintain Brain Health | J150: Healthy Living | N150: 31.35 | O150: 21.95 | P150: 26.95 | R150: =R145 -> 0 | T150: =T145 -> 0 | V150: 0 | W150: 0 | X150: 0 | Y150: 0 | Z150: 0 | AA150: 0 | AC150: 17 | AD150: 612.8/2 | AE150: 32 | AF150: 3 - 5 | AG150: Animals & Nature | AH150: English | AI150: Amicus | AJ150: 12-Story Library | AK150: 2017 | AL150: Maddie Spalding | AN150: T | AP150: Not Quizable | AR150: 750L
A151: Spring 2017 | B151: NEW | C151: 9781621435112 | D151: 9781632353696 | F151: 12 Ways to Improve Athletic Performance | J151: Healthy Living | N151: 31.35 | O151: 21.95 | P151: 26.95 | R151: =R145 -> 0 | T151: =T145 -> 0 | V151: 0 | W151: 0 | X151: 0 | Y151: 0 | Z151: 0 | AA151: 0 | AC151: 17 | AD151: 613.7 | AE151: 32 | AF151: 3 - 5 | AG151: Animals & Nature | AH151: English | AI151: Amicus | AJ151: 12-Story Library | AK151: 2017 | AL151: Todd Kortemeier | AN151: T | AP151: Not Quizable | AR151: 700L
A152: Spring 2017 | B152: NEW | C152: 9781621435129 | D152: 9781632353702 | F152: 12 Ways to Prevent Disease | J152: Healthy Living | N152: 31.35 | O152: 21.95 | P152: 26.95 | R152: =R145 -> 0 | T152: =T145 -> 0 | V152: 0 | W152: 0 | X152: 0 | Y152: 0 | Z152: 0 | AA152: 0 | AC152: 17 | AD152: 613 | AE152: 32 | AF152: 3 - 5 | AG152: Animals & Nature | AH152: English | AI152: Amicus | AJ152: 12-Story Library | AK152: 2017 | AL152: Melissa Abramovitz | AN152: T | AP152: Not Quizable | AR152: 770L
A153: Spring 2017 | B153: NEW | C153: 9781621435136 | D153: 9781632353719 | F153: 12 Ways to Stay Active and Fit | J153: Healthy Living | N153: 31.35 | O153: 21.95 | P153: 26.95 | R153: =R145 -> 0 | T153: =T145 -> 0 | V153: 0 | W153: 0 | X153: 0 | Y153: 0 | Z153: 0 | AA153: 0 | AC153: 17 | AD153: 613 | AE153: 32 | AF153: 3 - 5 | AG153: Animals & Nature | AH153: English | AI153: Amicus | AJ153: 12-Story Library | AK153: 2017 | AL153: Jamie Kallio | AN153: T | AP153: Not Quizable | AR153: 800L
F155: Complete HC Series of 8 | J155: Great Tips on Writing | N155: =SUM(N156:N163) -> 250.8 | O155: =SUM(O156:O163) -> 175.6 | P155: =SUM(P156:P163) -> 215.6 | AI155: Amicus
A156: Spring 2017 | B156: NEW | C156: 9781621434412 | D156: 9781632352736 | F156: 12 Great Tips on Writing a Blog | J156: Great Tips on Writing | N156: 31.35 | O156: 21.95 | P156: 26.95 | R156: =R155 -> 0 | T156: =T155 -> 0 | V156: =R156 -> 0 | W156: =T156*2 -> 0 | X156: =SUM(V156:W156) -> 0 | Y156: =R156*O156 -> 0 | Z156: =T156*P156 -> 0 | AA156: =SUM(Y156:Z156) -> 0 | AC156: 17 | AD156: 070 | AE156: 32 | AF156: 3 - 5 | AG156: Language Arts | AH156: English | AI156: Amicus | AJ156: 12-Story Library | AK156: 2017 | AL156: Barbara Krasner | AN156: U | AP156: Not Quizable | AR156: 730L
A157: Spring 2017 | B157: NEW | C157: 9781621434443 | D157: 9781632352767 | F157: 12 Great Tips on Writing a Script | J157: Great Tips on Writing | N157: 31.35 | O157: 21.95 | P157: 26.95 | R157: =R155 -> 0 | T157: =T155 -> 0 | V157: 0 | W157: 0 | X157: 0 | Y157: 0 | Z157: 0 | AA157: 0 | AC157: 17 | AD157: 790 | AE157: 32 | AF157: 3 - 5 | AG157: Language Arts | AH157: English | AI157: Amicus | AJ157: 12-Story Library | AK157: 2017 | AL157: Barbara Krasner | AN157: U | AP157: Not Quizable | AR157: 710L
A158: Spring 2017 | B158: NEW | C158: 9781621434450 | D158: 9781632352774 | F158: 12 Great Tips on Writing a Speech | J158: Great Tips on Writing | N158: 31.35 | O158: 21.95 | P158: 26.95 | R158: =R155 -> 0 | T158: =T155 -> 0 | V158: 0 | W158: 0 | X158: 0 | Y158: 0 | Z158: 0 | AA158: 0 | AC158: 17 | AD158: 790 | AE158: 32 | AF158: 3 - 5 | AG158: Language Arts | AH158: English | AI158: Amicus | AJ158: 12-Story Library | AK158: 2017 | AL158: Catherine Elisabeth Shipp | AN158: U | AP158: Not Quizable | AR158: 720L
A159: Spring 2017 | B159: NEW | C159: 9781621434429 | D159: 9781632352743 | F159: 12 Great Tips on Writing Fiction | J159: Great Tips on Writing | N159: 31.35 | O159: 21.95 | P159: 26.95 | R159: =R155 -> 0 | T159: =T155 -> 0 | V159: 0 | W159: 0 | X159: 0 | Y159: 0 | Z159: 0 | AA159: 0 | AC159: 17 | AD159: 411 | AE159: 32 | AF159: 3 - 5 | AG159: Language Arts | AH159: English | AI159: Amicus | AJ159: 12-Story Library | AK159: 2017 | AL159: Catherine Elisabeth Shipp | AN159: U | AP159: Not Quizable | AR159: 640L
A160: Spring 2017 | B160: NEW | C160: 9781621434436 | D160: 9781632352750 | F160: 12 Great Tips on Writing Poetry | J160: Great Tips on Writing | N160: 31.35 | O160: 21.95 | P160: 26.95 | R160: =R155 -> 0 | T160: =T155 -> 0 | V160: 0 | W160: 0 | X160: 0 | Y160: 0 | Z160: 0 | AA160: 0 | AC160: 17 | AD160: 411 | AE160: 32 | AF160: 3 - 5 | AG160: Language Arts | AH160: English | AI160: Amicus | AJ160: 12-Story Library | AK160: 2017 | AL160: Yvonne Pearson | AN160: U | AP160: Not Quizable | AR160: 740L
A161: Spring 2017 | B161: NEW | C161: 9781621434467 | D161: 9781632352781 | F161: 12 Great Tips on Writing to Inform | J161: Great Tips on Writing | N161: 31.35 | O161: 21.95 | P161: 26.95 | R161: =R155 -> 0 | T161: =T155 -> 0 | V161: 0 | W161: 0 | X161: 0 | Y161: 0 | Z161: 0 | AA161: 0 | AC161: 17 | AD161: 070 | AE161: 32 | AF161: 3 - 5 | AG161: Language Arts | AH161: English | AI161: Amicus | AJ161: 12-Story Library | AK161: 2017 | AL161: Jeanne Marie Ford | AN161: U | AP161: Not Quizable | AR161: 700L
A162: Spring 2017 | B162: NEW | C162: 9781621434474 | D162: 9781632352798 | F162: 12 Great Tips on Writing to Persuade | J162: Great Tips on Writing | N162: 31.35 | O162: 21.95 | P162: 26.95 | R162: =R155 -> 0 | T162: =T155 -> 0 | V162: 0 | W162: 0 | X162: 0 | Y162: 0 | Z162: 0 | AA162: 0 | AC162: 17 | AD162: 411 | AE162: 32 | AF162: 3 - 5 | AG162: Language Arts | AH162: English | AI162: Amicus | AJ162: 12-Story Library | AK162: 2017 | AL162: Molly Jones | AN162: U | AP162: Not Quizable | AR162: 720L
A163: Spring 2017 | B163: NEW | C163: 9781621434481 | D163: 9781632352804 | F163: 12 Great Tips on Writing True Stories | J163: Great Tips on Writing | N163: 31.35 | O163: 21.95 | P163: 26.95 | R163: =R155 -> 0 | T163: =T155 -> 0 | V163: 0 | W163: 0 | X163: 0 | Y163: 0 | Z163: 0 | AA163: 0 | AC163: 17 | AD163: 411 | AE163: 32 | AF163: 3 - 5 | AG163: Language Arts | AH163: English | AI163: Amicus | AJ163: 12-Story Library | AK163: 2017 | AL163: Molly Jones | AN163: U | AP163: Not Quizable | AR163: 700L
F165: Complete HC Series of 6 | J165: Spot Mighty Machines | N165: =SUM(N166:N171) -> 153.9 | O165: =SUM(O166:O171) -> 107.7 | P165: =SUM(P166:P171) -> 137.7 | AI165: Amicus
A166: Fall 2017 | B166: NEW | C166: 9781681511894 | D166: 9781681510996 | F166: Bulldozers | J166: Spot Mighty Machines | N166: 25.65 | O166: 17.95 | P166: 22.95 | R166: =R165 -> 0 | T166: =T165 -> 0 | V166: =R166 -> 0 | W166: =T166*2 -> 0 | X166: =SUM(V166:W166) -> 0 | Y166: =R166*O166 -> 0 | Z166: =T166*P166 -> 0 | AA166: =SUM(Y166:Z166) -> 0 | AC166: 18 | AD166: 629.225 | AE166: 16 | AF166: PreK and up | AG166: Science & Technology | AH166: English | AI166: Amicus | AJ166: Spot | AK166: 2018 | AL166: Mari Schuh | AP166: AR Submitted | AR166: 260L
A167: Fall 2017 | B167: NEW | C167: 9781681511887 | D167: 9781681510989 | F167: Concrete Mixers | J167: Spot Mighty Machines | N167: 25.65 | O167: 17.95 | P167: 22.95 | R167: =R165 -> 0 | T167: =T165 -> 0 | V167: 0 | W167: 0 | X167: 0 | Y167: 0 | Z167: 0 | AA167: 0 | AC167: 18 | AD167: 629.225 | AE167: 16 | AF167: PreK and up | AG167: Science & Technology | AH167: English | AI167: Amicus | AJ167: Spot | AK167: 2018 | AL167: Mari Schuh | AP167: AR Submitted | AR167: 240L
A168: Fall 2017 | B168: NEW | C168: 9781681511900 | D168: 9781681511009 | F168: Cranes | J168: Spot Mighty Machines | N168: 25.65 | O168: 17.95 | P168: 22.95 | R168: =R165 -> 0 | T168: =T165 -> 0 | V168: 0 | W168: 0 | X168: 0 | Y168: 0 | Z168: 0 | AA168: 0 | AC168: 18 | AD168: 621.8/73 | AE168: 16 | AF168: PreK and up | AG168: Science & Technology | AH168: English | AI168: Amicus | AJ168: Spot | AK168: 2018 | AL168: Mari Schuh | AP168: AR Submitted | AR168: 250L
A169: Fall 2017 | B169: NEW | C169: 9781681511917 | D169: 9781681511016 | F169: Diggers | J169: Spot Mighty Machines | N169: 25.65 | O169: 17.95 | P169: 22.95 | R169: =R165 -> 0 | T169: =T165 -> 0 | V169: 0 | W169: 0 | X169: 0 | Y169: 0 | Z169: 0 | AA169: 0 | AC169: 18 | AD169: 621.8/65 | AE169: 16 | AF169: PreK and up | AG169: Science & Technology | AH169: English | AI169: Amicus | AJ169: Spot | AK169: 2018 | AL169: Mari Schuh | AP169: AR Submitted | AR169: 290L
A170: Fall 2017 | B170: NEW | C170: 9781681511924 | D170: 9781681511023 | F170: Dump Trucks | J170: Spot Mighty Machines | N170: 25.65 | O170: 17.95 | P170: 22.95 | R170: =R165 -> 0 | T170: =T165 -> 0 | V170: 0 | W170: 0 | X170: 0 | Y170: 0 | Z170: 0 | AA170: 0 | AC170: 18 | AD170: 629.224 | AE170: 16 | AF170: PreK and up | AG170: Science & Technology | AH170: English | AI170: Amicus | AJ170: Spot | AK170: 2018 | AL170: Mari Schuh | AP170: AR Submitted | AR170: 270L
A171: Fall 2017 | B171: NEW | C171: 9781681511931 | D171: 9781681511030 | F171: Loaders | J171: Spot Mighty Machines | N171: 25.65 | O171: 17.95 | P171: 22.95 | R171: =R165 -> 0 | T171: =T165 -> 0 | V171: 0 | W171: 0 | X171: 0 | Y171: 0 | Z171: 0 | AA171: 0 | AC171: 18 | AD171: 621.8/6 | AE171: 16 | AF171: PreK and up | AG171: Science & Technology | AH171: English | AI171: Amicus | AJ171: Spot | AK171: 2018 | AL171: Mari Schuh | AP171: AR Submitted | AR171: 240L
F173: Complete HC Series of 8 | J173: Spot Backyard Animals | N173: =SUM(N174:N181) -> 205.2 | O173: =SUM(O174:O181) -> 143.6 | P173: =SUM(P174:P181) -> 183.6 | AI173: Amicus
A174: Fall 2017 | B174: NEW | C174: 9781681511801 | D174: 9781681510903 | F174: Bats | J174: Spot Backyard Animals | N174: 25.65 | O174: 17.95 | P174: 22.95 | R174: =R173 -> 0 | T174: =T173 -> 0 | V174: =R174 -> 0 | W174: =T174*2 -> 0 | X174: =SUM(V174:W174) -> 0 | Y174: =R174*O174 -> 0 | Z174: =T174*P174 -> 0 | AA174: =SUM(Y174:Z174) -> 0 | AC174: 18 | AD174: 599.4 | AE174: 16 | AF174: PreK and up | AG174: Animals & Nature | AH174: English | AI174: Amicus | AJ174: Spot | AK174: 2018 | AL174: Wendy Strobel Dieker | AP174: AR Submitted | AR174: 210L
A175: Fall 2017 | B175: NEW | C175: 9781681511818 | D175: 9781681510910 | F175: Frogs | J175: Spot Backyard Animals | N175: 25.65 | O175: 17.95 | P175: 22.95 | R175: =R173 -> 0 | T175: =T173 -> 0 | V175: 0 | W175: 0 | X175: 0 | Y175: 0 | Z175: 0 | AA175: 0 | AC175: 18 | AD175: 597.8/9 | AE175: 16 | AF175: PreK and up | AG175: Animals & Nature | AH175: English | AI175: Amicus | AJ175: Spot | AK175: 2018 | AL175: Marysa Storm | AP175: AR Submitted | AR175: 300L
A176: Fall 2017 | B176: NEW | C176: 9781681511825 | D176: 9781681510927 | F176: Geckos | J176: Spot Backyard Animals | N176: 25.65 | O176: 17.95 | P176: 22.95 | R176: =R173 -> 0 | T176: =T173 -> 0 | V176: 0 | W176: 0 | X176: 0 | Y176: 0 | Z176: 0 | AA176: 0 | AC176: 18 | AD176: 597.95/2 | AE176: 16 | AF176: PreK and up | AG176: Animals & Nature | AH176: English | AI176: Amicus | AJ176: Spot | AK176: 2018 | AL176: Rachel Bach | AP176: AR Submitted | AR176: 290L
A177: Fall 2017 | B177: NEW | C177: 9781681511832 | D177: 9781681510934 | F177: Mice | J177: Spot Backyard Animals | N177: 25.65 | O177: 17.95 | P177: 22.95 | R177: =R173 -> 0 | T177: =T173 -> 0 | V177: 0 | W177: 0 | X177: 0 | Y177: 0 | Z177: 0 | AA177: 0 | AC177: 18 | AD177: 599.35/3 | AE177: 16 | AF177: PreK and up | AG177: Animals & Nature | AH177: English | AI177: Amicus | AJ177: Spot | AK177: 2018 | AL177: Marysa Storm | AP177: AR Submitted | AR177: 330L
A178: Fall 2017 | B178: NEW | C178: 9781681511849 | D178: 9781681510941 | F178: Owls | J178: Spot Backyard Animals | N178: 25.65 | O178: 17.95 | P178: 22.95 | R178: =R173 -> 0 | T178: =T173 -> 0 | V178: 0 | W178: 0 | X178: 0 | Y178: 0 | Z178: 0 | AA178: 0 | AC178: 18 | AD178: 598.9/7 | AE178: 16 | AF178: PreK and up | AG178: Animals & Nature | AH178: English | AI178: Amicus | AJ178: Spot | AK178: 2018 | AL178: Wendy Strobel Dieker | AP178: AR Submitted | AR178: 260L
A179: Fall 2017 | B179: NEW | C179: 9781681511856 | D179: 9781681510958 | F179: Raccoons | J179: Spot Backyard Animals | N179: 25.65 | O179: 17.95 | P179: 22.95 | R179: =R173 -> 0 | T179: =T173 -> 0 | V179: 0 | W179: 0 | X179: 0 | Y179: 0 | Z179: 0 | AA179: 0 | AC179: 18 | AD179: 599.76/32 | AE179: 16 | AF179: PreK and up | AG179: Animals & Nature | AH179: English | AI179: Amicus | AJ179: Spot | AK179: 2018 | AL179: Marysa Storm | AP179: AR Submitted | AR179: 320L
A180: Fall 2017 | B180: NEW | C180: 9781681511863 | D180: 9781681510965 | F180: Skunks | J180: Spot Backyard Animals | N180: 25.65 | O180: 17.95 | P180: 22.95 | R180: =R173 -> 0 | T180: =T173 -> 0 | V180: 0 | W180: 0 | X180: 0 | Y180: 0 | Z180: 0 | AA180: 0 | AC180: 18 | AD180: 599.76/8 | AE180: 16 | AF180: PreK and up | AG180: Animals & Nature | AH180: English | AI180: Amicus | AJ180: Spot | AK180: 2018 | AL180: Wendy Strobel Dieker | AP180: AR Submitted | AR180: 260L
A181: Fall 2017 | B181: NEW | C181: 9781681511870 | D181: 9781681510972 | F181: Squirrels | J181: Spot Backyard Animals | N181: 25.65 | O181: 17.95 | P181: 22.95 | R181: =R173 -> 0 | T181: =T173 -> 0 | V181: 0 | W181: 0 | X181: 0 | Y181: 0 | Z181: 0 | AA181: 0 | AC181: 18 | AD181: 599.36 | AE181: 16 | AF181: PreK and up | AG181: Animals & Nature | AH181: English | AI181: Amicus | AJ181: Spot | AK181: 2018 | AL181: Wendy Strobel Dieker | AP181: AR Submitted | AR181: 300L
F183: Complete HC Series of 8 | J183: Spot Creepy Crawlies | N183: =SUM(N184:N191) -> 205.2 | O183: =SUM(O184:O191) -> 143.6 | P183: =SUM(P184:P191) -> 183.6 | AI183: Amicus
A184: Fall 2017 | B184: NEW | C184: 9781681511948 | D184: 9781681511047 | F184: Ants | J184: Spot Creepy Crawlies | N184: 25.65 | O184: 17.95 | P184: 22.95 | R184: =R183 -> 0 | T184: =T183 -> 0 | V184: =R184 -> 0 | W184: =T184*2 -> 0 | X184: =SUM(V184:W184) -> 0 | Y184: =R184*O184 -> 0 | Z184: =T184*P184 -> 0 | AA184: =SUM(Y184:Z184) -> 0 | AC184: 19 | AD184: 595.79/6 | AE184: 16 | AF184: PreK and up | AG184: Animals & Nature | AH184: English | AI184: Amicus | AJ184: Spot | AK184: 2018 | AL184: Nessa Black | AP184: AR Submitted | AR184: 320L
A185: Fall 2017 | B185: NEW | C185: 9781681511955 | D185: 9781681511054 | F185: Bees | J185: Spot Creepy Crawlies | N185: 25.65 | O185: 17.95 | P185: 22.95 | R185: =R183 -> 0 | T185: =T183 -> 0 | V185: 0 | W185: 0 | X185: 0 | Y185: 0 | Z185: 0 | AA185: 0 | AC185: 19 | AD185: 595.79/9 | AE185: 16 | AF185: PreK and up | AG185: Animals & Nature | AH185: English | AI185: Amicus | AJ185: Spot | AK185: 2018 | AL185: Nessa Black | AP185: AR Submitted | AR185: 270L
A186: Fall 2017 | B186: NEW | C186: 9781681511962 | D186: 9781681511061 | F186: Beetles | J186: Spot Creepy Crawlies | N186: 25.65 | O186: 17.95 | P186: 22.95 | R186: =R183 -> 0 | T186: =T183 -> 0 | V186: 0 | W186: 0 | X186: 0 | Y186: 0 | Z186: 0 | AA186: 0 | AC186: 19 | AD186: 595.76 | AE186: 16 | AF186: PreK and up | AG186: Animals & Nature | AH186: English | AI186: Amicus | AJ186: Spot | AK186: 2018 | AL186: Nessa Black | AP186: AR Submitted | AR186: 260L
A187: Fall 2017 | B187: NEW | C187: 9781681511979 | D187: 9781681511078 | F187: Butterflies | J187: Spot Creepy Crawlies | N187: 25.65 | O187: 17.95 | P187: 22.95 | R187: =R183 -> 0 | T187: =T183 -> 0 | V187: 0 | W187: 0 | X187: 0 | Y187: 0 | Z187: 0 | AA187: 0 | AC187: 19 | AD187: 595.78/9 | AE187: 16 | AF187: PreK and up | AG187: Animals & Nature | AH187: English | AI187: Amicus | AJ187: Spot | AK187: 2018 | AL187: Rachel Bach | AP187: AR Submitted | AR187: 320L
A188: Fall 2017 | B188: NEW | C188: 9781681511986 | D188: 9781681511085 | F188: Flies | J188: Spot Creepy Crawlies | N188: 25.65 | O188: 17.95 | P188: 22.95 | R188: =R183 -> 0 | T188: =T183 -> 0 | V188: 0 | W188: 0 | X188: 0 | Y188: 0 | Z188: 0 | AA188: 0 | AC188: 19 | AD188: 595.77 | AE188: 16 | AF188: PreK and up | AG188: Animals & Nature | AH188: English | AI188: Amicus | AJ188: Spot | AK188: 2018 | AL188: Nessa Black | AP188: AR Submitted | AR188: 260L
A189: Fall 2017 | B189: NEW | C189: 9781681511993 | D189: 9781681511092 | F189: Ladybugs | J189: Spot Creepy Crawlies | N189: 25.65 | O189: 17.95 | P189: 22.95 | R189: =R183 -> 0 | T189: =T183 -> 0 | V189: 0 | W189: 0 | X189: 0 | Y189: 0 | Z189: 0 | AA189: 0 | AC189: 19 | AD189: 595.76/9 | AE189: 16 | AF189: PreK and up | AG189: Animals & Nature | AH189: English | AI189: Amicus | AJ189: Spot | AK189: 2018 | AL189: Nessa Black | AP189: AR Submitted | AR189: 290L
A190: Fall 2017 | B190: NEW | C190: 9781681512006 | D190: 9781681511108 | F190: Spiders | J190: Spot Creepy Crawlies | N190: 25.65 | O190: 17.95 | P190: 22.95 | R190: =R183 -> 0 | T190: =T183 -> 0 | V190: 0 | W190: 0 | X190: 0 | Y190: 0 | Z190: 0 | AA190: 0 | AC190: 19 | AD190: 595.4/4 | AE190: 16 | AF190: PreK and up | AG190: Animals & Nature | AH190: English | AI190: Amicus | AJ190: Spot | AK190: 2018 | AL190: Nessa Black | AP190: AR Submitted | AR190: 260L
A191: Fall 2017 | B191: NEW | C191: 9781681512013 | D191: 9781681511115 | F191: Worms | J191: Spot Creepy Crawlies | N191: 25.65 | O191: 17.95 | P191: 22.95 | R191: =R183 -> 0 | T191: =T183 -> 0 | V191: 0 | W191: 0 | X191: 0 | Y191: 0 | Z191: 0 | AA191: 0 | AC191: 19 | AD191: 592/.3 | AE191: 16 | AF191: PreK and up | AG191: Animals & Nature | AH191: English | AI191: Amicus | AJ191: Spot | AK191: 2018 | AL191: Nessa Black | AP191: AR Submitted | AR191: 230L
F193: Complete HC Series of 6 | J193: Spot Sports | N193: =SUM(N194:N199) -> 153.9 | O193: =SUM(O194:O199) -> 107.7 | P193: =SUM(P194:P199) -> 137.7 | AI193: Amicus
A194: Fall 2017 | B194: NEW | C194: 9781681511757 | D194: 9781681510859 | F194: Baseball | J194: Spot Sports | N194: 25.65 | O194: 17.95 | P194: 22.95 | R194: =R193 -> 0 | T194: =T193 -> 0 | V194: =R194 -> 0 | W194: =T194*2 -> 0 | X194: =SUM(V194:W194) -> 0 | Y194: =R194*O194 -> 0 | Z194: =T194*P194 -> 0 | AA194: =SUM(Y194:Z194) -> 0 | AC194: 19 | AD194: 796.357 | AE194: 16 | AF194: PreK and up | AG194: Sports | AH194: English | AI194: Amicus | AJ194: Spot | AK194: 2018 | AL194: Mari Schuh | AP194: AR Submitted | AR194: 280L
A195: Fall 2017 | B195: NEW | C195: 9781681511740 | D195: 9781681510842 | F195: Basketball | J195: Spot Sports | N195: 25.65 | O195: 17.95 | P195: 22.95 | R195: =R193 -> 0 | T195: =T193 -> 0 | V195: 0 | W195: 0 | X195: 0 | Y195: 0 | Z195: 0 | AA195: 0 | AC195: 19 | AD195: 796.323 | AE195: 16 | AF195: PreK and up | AG195: Sports | AH195: English | AI195: Amicus | AJ195: Spot | AK195: 2018 | AL195: Mari Schuh | AP195: AR Submitted | AR195: 320L
A196: Fall 2017 | B196: NEW | C196: 9781681511764 | D196: 9781681510866 | F196: Football | J196: Spot Sports | N196: 25.65 | O196: 17.95 | P196: 22.95 | R196: =R193 -> 0 | T196: =T193 -> 0 | V196: 0 | W196: 0 | X196: 0 | Y196: 0 | Z196: 0 | AA196: 0 | AC196: 19 | AD196: 796.332 | AE196: 16 | AF196: PreK and up | AG196: Sports | AH196: English | AI196: Amicus | AJ196: Spot | AK196: 2018 | AL196: Mari Schuh | AP196: AR Submitted | AR196: 330L
A197: Fall 2017 | B197: NEW | C197: 9781681511771 | D197: 9781681510873 | F197: Gymnastics | J197: Spot Sports | N197: 25.65 | O197: 17.95 | P197: 22.95 | R197: =R193 -> 0 | T197: =T193 -> 0 | V197: 0 | W197: 0 | X197: 0 | Y197: 0 | Z197: 0 | AA197: 0 | AC197: 19 | AD197: 796.44 | AE197: 16 | AF197: PreK and up | AG197: Sports | AH197: English | AI197: Amicus | AJ197: Spot | AK197: 2018 | AL197: Mari Schuh | AP197: AR Submitted | AR197: 280L
A198: Fall 2017 | B198: NEW | C198: 9781681511788 | D198: 9781681510880 | F198: Hockey | J198: Spot Sports | N198: 25.65 | O198: 17.95 | P198: 22.95 | R198: =R193 -> 0 | T198: =T193 -> 0 | V198: 0 | W198: 0 | X198: 0 | Y198: 0 | Z198: 0 | AA198: 0 | AC198: 19 | AD198: 796.962 | AE198: 16 | AF198: PreK and up | AG198: Sports | AH198: English | AI198: Amicus | AJ198: Spot | AK198: 2018 | AL198: Mari Schuh | AP198: AR Submitted | AR198: 280L
A199: Fall 2017 | B199: NEW | C199: 9781681511795 | D199: 9781681510897 | F199: Soccer | J199: Spot Sports | N199: 25.65 | O199: 17.95 | P199: 22.95 | R199: =R193 -> 0 | T199: =T193 -> 0 | V199: 0 | W199: 0 | X199: 0 | Y199: 0 | Z199: 0 | AA199: 0 | AC199: 19 | AD199: 796.334 | AE199: 16 | AF199: PreK and up | AG199: Sports | AH199: English | AI199: Amicus | AJ199: Spot | AK199: 2018 | AL199: Mari Schuh | AP199: AR Submitted | AR199: 320L
F201: Complete HC Series of 6 | J201: Who Made My Lunch? | N201: =SUM(N202:N207) -> 179.7 | O201: =SUM(O202:O207) -> 125.7 | P201: =SUM(P202:P207) -> 155.7 | AI201: Amicus
A202: Fall 2017 | B202: NEW | C202: 9781681512105 | D202: 9781681511207 | F202: From Cocoa Beans to Chocolate | J202: Who Made My Lunch? | N202: 29.95 | O202: 20.95 | P202: 25.95 | R202: =R201 -> 0 | T202: =T201 -> 0 | V202: =R202 -> 0 | W202: =T202*2 -> 0 | X202: =SUM(V202:W202) -> 0 | Y202: =R202*O202 -> 0 | Z202: =T202*P202 -> 0 | AA202: =SUM(Y202:Z202) -> 0 | AC202: 20 | AD202: 664/.5 | AE202: 24 | AF202: K and up | AG202: Health | AH202: English | AI202: Amicus | AJ202: Amicus Illustrated | AK202: 2018 | AL202: Bridget Heos | AM202: Stephanie Fizer Coleman | AP202: AR Submitted | AR202: 610L
A203: Fall 2017 | B203: NEW | C203: 9781681512129 | D203: 9781681511221 | F203: From Grapes to Jelly | J203: Who Made My Lunch? | N203: 29.95 | O203: 20.95 | P203: 25.95 | R203: =R201 -> 0 | T203: =T201 -> 0 | V203: 0 | W203: 0 | X203: 0 | Y203: 0 | Z203: 0 | AA203: 0 | AC203: 20 | AD203: 641.3/48 | AE203: 24 | AF203: K and up | AG203: Health | AH203: English | AI203: Amicus | AJ203: Amicus Illustrated | AK203: 2018 | AL203: Bridget Heos | AM203: Stephanie Fizer Coleman | AP203: AR Submitted | AR203: 580L
A204: Fall 2017 | B204: NEW | C204: 9781681512099 | D204: 9781681511191 | F204: From Milk to Cheese | J204: Who Made My Lunch? | N204: 29.95 | O204: 20.95 | P204: 25.95 | R204: =R201 -> 0 | T204: =T201 -> 0 | V204: 0 | W204: 0 | X204: 0 | Y204: 0 | Z204: 0 | AA204: 0 | AC204: 20 | AD204: 637/.3 | AE204: 24 | AF204: K and up | AG204: Health | AH204: English | AI204: Amicus | AJ204: Amicus Illustrated | AK204: 2018 | AL204: Bridget Heos | AM204: Stephanie Fizer Coleman | AP204: AR Submitted | AR204: 590L
A205: Fall 2017 | B205: NEW | C205: 9781681512112 | D205: 9781681511214 | F205: From Milk to Ice Cream | J205: Who Made My Lunch? | N205: 29.95 | O205: 20.95 | P205: 25.95 | R205: =R201 -> 0 | T205: =T201 -> 0 | V205: 0 | W205: 0 | X205: 0 | Y205: 0 | Z205: 0 | AA205: 0 | AC205: 20 | AD205: 641.86/2 | AE205: 24 | AF205: K and up | AG205: Health | AH205: English | AI205: Amicus | AJ205: Amicus Illustrated | AK205: 2018 | AL205: Bridget Heos | AM205: Stephanie Fizer Coleman | AP205: AR Submitted | AR205: 570L
A206: Fall 2017 | B206: NEW | C206: 9781681512136 | D206: 9781681511238 | F206: From Peanuts to Peanut Butter | J206: Who Made My Lunch? | N206: 29.95 | O206: 20.95 | P206: 25.95 | R206: =R201 -> 0 | T206: =T201 -> 0 | V206: 0 | W206: 0 | X206: 0 | Y206: 0 | Z206: 0 | AA206: 0 | AC206: 20 | AD206: 664/.8056596 | AE206: 24 | AF206: K and up | AG206: Health | AH206: English | AI206: Amicus | AJ206: Amicus Illustrated | AK206: 2018 | AL206: Bridget Heos | AM206: Stephanie Fizer Coleman | AP206: AR Submitted | AR206: 580L
A207: Fall 2017 | B207: NEW | C207: 9781681512082 | D207: 9781681511184 | F207: From Wheat to Bread | J207: Who Made My Lunch? | N207: 29.95 | O207: 20.95 | P207: 25.95 | R207: =R201 -> 0 | T207: =T201 -> 0 | V207: 0 | W207: 0 | X207: 0 | Y207: 0 | Z207: 0 | AA207: 0 | AC207: 20 | AD207: 641.81/5 | AE207: 24 | AF207: K and up | AG207: Health | AH207: English | AI207: Amicus | AJ207: Amicus Illustrated | AK207: 2018 | AL207: Bridget Heos | AM207: Stephanie Fizer Coleman | AP207: AR Submitted | AR207: 540L
F209: Complete HC Series of 6 | J209: Making Good Choices | N209: =SUM(N210:N215) -> 179.7 | O209: =SUM(O210:O215) -> 125.7 | P209: =SUM(P210:P215) -> 155.7 | AI209: Amicus
A210: Fall 2017 | B210: NEW | C210: 9781681512570 | D210: 9781681511672 | F210: You Can Control Your Voice: Loud or Quiet? | J210: Making Good Choices | N210: 29.95 | O210: 20.95 | P210: 25.95 | R210: =R209 -> 0 | T210: =T209 -> 0 | V210: =R210 -> 0 | W210: =T210*2 -> 0 | X210: =SUM(V210:W210) -> 0 | Y210: =R210*O210 -> 0 | Z210: =T210*P210 -> 0 | AA210: =SUM(Y210:Z210) -> 0 | AC210: 20 | AD210: 395.5/3 | AE210: 24 | AF210: K and up | AG210: Character Education | AH210: English | AI210: Amicus | AJ210: Amicus Illustrated | AK210: 2018 | AL210: Connie Colwell Miller | AM210: Victoria Assanelli | AN210: K | AP210: Not Quizable | AR210: 500L
A211: Fall 2017 | B211: NEW | C211: 9781681512525 | D211: 9781681511627 | F211: You Can Handle Conflict: Hands or Words? | J211: Making Good Choices | N211: 29.95 | O211: 20.95 | P211: 25.95 | R211: =R209 -> 0 | T211: =T209 -> 0 | V211: 0 | W211: 0 | X211: 0 | Y211: 0 | Z211: 0 | AA211: 0 | AC211: 20 | AD211: 155.4/192 | AE211: 24 | AF211: K and up | AG211: Character Education | AH211: English | AI211: Amicus | AJ211: Amicus Illustrated | AK211: 2018 | AL211: Connie Colwell Miller | AM211: Victoria Assanelli | AN211: K | AP211: Not Quizable | AR211: 500L
A212: Fall 2017 | B212: NEW | C212: 9781681512563 | D212: 9781681511665 | F212: You Can Listen to Directions: Stop or Go? | J212: Making Good Choices | N212: 29.95 | O212: 20.95 | P212: 25.95 | R212: =R209 -> 0 | T212: =T209 -> 0 | V212: 0 | W212: 0 | X212: 0 | Y212: 0 | Z212: 0 | AA212: 0 | AC212: 20 | AD212: 155.4/19 | AE212: 24 | AF212: K and up | AG212: Character Education | AH212: English | AI212: Amicus | AJ212: Amicus Illustrated | AK212: 2018 | AL212: Connie Colwell Miller | AM212: Victoria Assanelli | AN212: K | AP212: Not Quizable | AR212: 510L
A213: Fall 2017 | B213: NEW | C213: 9781681512556 | D213: 9781681511658 | F213: You Can Stay in Control: Wild or Calm? | J213: Making Good Choices | N213: 29.95 | O213: 20.95 | P213: 25.95 | R213: =R209 -> 0 | T213: =T209 -> 0 | V213: 0 | W213: 0 | X213: 0 | Y213: 0 | Z213: 0 | AA213: 0 | AC213: 20 | AD213: 155.4/19 | AE213: 24 | AF213: K and up | AG213: Character Education | AH213: English | AI213: Amicus | AJ213: Amicus Illustrated | AK213: 2018 | AL213: Connie Colwell Miller | AM213: Victoria Assanelli | AN213: K | AP213: Not Quizable | AR213: 500L
A214: Fall 2017 | B214: NEW | C214: 9781681512549 | D214: 9781681511641 | F214: You're Angry: Throw a Fit or Talk it Out? | J214: Making Good Choices | N214: 29.95 | O214: 20.95 | P214: 25.95 | R214: =R209 -> 0 | T214: =T209 -> 0 | V214: 0 | W214: 0 | X214: 0 | Y214: 0 | Z214: 0 | AA214: 0 | AC214: 20 | AD214: 155.4/1247 | AE214: 24 | AF214: K and up | AG214: Character Education | AH214: English | AI214: Amicus | AJ214: Amicus Illustrated | AK214: 2018 | AL214: Connie Colwell Miller | AM214: Victoria Assanelli | AN214: K | AP214: Not Quizable | AR214: 500L
A215: Fall 2017 | B215: NEW | C215: 9781681512532 | D215: 9781681511634 | F215: You're in Trouble: Fib or Truth? | J215: Making Good Choices | N215: 29.95 | O215: 20.95 | P215: 25.95 | R215: =R209 -> 0 | T215: =T209 -> 0 | V215: 0 | W215: 0 | X215: 0 | Y215: 0 | Z215: 0 | AA215: 0 | AC215: 20 | AD215: 177/.3 | AE215: 24 | AF215: K and up | AG215: Character Education | AH215: English | AI215: Amicus | AJ215: Amicus Illustrated | AK215: 2018 | AL215: Connie Colwell Miller | AM215: Victoria Assanelli | AN215: K | AP215: Not Quizable | AR215: 500L
F217: Complete HC Series of 6 | J217: Animal Builders | N217: =SUM(N218:N223) -> 179.7 | O217: =SUM(O218:O223) -> 125.7 | P217: =SUM(P218:P223) -> 155.7 | AI217: Amicus
A218: Fall 2017 | B218: NEW | C218: 9781681512617 | D218: 9781681511719 | F218: Bears Make Dens | J218: Animal Builders | N218: 29.95 | O218: 20.95 | P218: 25.95 | R218: =R217 -> 0 | T218: =T217 -> 0 | V218: =R218 -> 0 | W218: =T218*2 -> 0 | X218: =SUM(V218:W218) -> 0 | Y218: =R218*O218 -> 0 | Z218: =T218*P218 -> 0 | AA218: =SUM(Y218:Z218) -> 0 | AC218: 21 | AD218: 599.78/5 | AE218: 24 | AF218: K and up | AG218: Animals & Nature | AH218: English | AI218: Amicus | AJ218: Amicus Illustrated | AK218: 2018 | AL218: Elizabeth Raum | AM218: Romina Martí | AN218: J | AP218: AR Submitted | AR218: 500L
A219: Fall 2017 | B219: NEW | C219: 9781681512587 | D219: 9781681511689 | F219: Beavers Build Lodges | J219: Animal Builders | N219: 29.95 | O219: 20.95 | P219: 25.95 | R219: =R217 -> 0 | T219: =T217 -> 0 | V219: 0 | W219: 0 | X219: 0 | Y219: 0 | Z219: 0 | AA219: 0 | AC219: 21 | AD219: 599.371564 | AE219: 24 | AF219: K and up | AG219: Animals & Nature | AH219: English | AI219: Amicus | AJ219: Amicus Illustrated | AK219: 2018 | AL219: Elizabeth Raum | AM219: Romina Martí | AN219: J | AP219: AR Submitted | AR219: 520L
A220: Fall 2017 | B220: NEW | C220: 9781681512594 | D220: 9781681511696 | F220: Bees Build Beehives | J220: Animal Builders | N220: 29.95 | O220: 20.95 | P220: 25.95 | R220: =R217 -> 0 | T220: =T217 -> 0 | V220: 0 | W220: 0 | X220: 0 | Y220: 0 | Z220: 0 | AA220: 0 | AC220: 21 | AD220: 595.79/9 | AE220: 24 | AF220: K and up | AG220: Animals & Nature | AH220: English | AI220: Amicus | AJ220: Amicus Illustrated | AK220: 2018 | AL220: Elizabeth Raum | AM220: Romina Martí | AN220: J | AP220: AR Submitted | AR220: 550L
A221: Fall 2017 | B221: NEW | C221: 9781681512600 | D221: 9781681511702 | F221: Birds Build Nests | J221: Animal Builders | N221: 29.95 | O221: 20.95 | P221: 25.95 | R221: =R217 -> 0 | T221: =T217 -> 0 | V221: 0 | W221: 0 | X221: 0 | Y221: 0 | Z221: 0 | AA221: 0 | AC221: 21 | AD221: 598 | AE221: 24 | AF221: K and up | AG221: Animals & Nature | AH221: English | AI221: Amicus | AJ221: Amicus Illustrated | AK221: 2018 | AL221: Elizabeth Raum | AM221: Romina Martí | AN221: J | AP221: AR Submitted | AR221: 590L
A222: Fall 2017 | B222: NEW | C222: 9781681512624 | D222: 9781681511726 | F222: Orangutans Build Tree Nests | J222: Animal Builders | N222: 29.95 | O222: 20.95 | P222: 25.95 | R222: =R217 -> 0 | T222: =T217 -> 0 | V222: 0 | W222: 0 | X222: 0 | Y222: 0 | Z222: 0 | AA222: 0 | AC222: 21 | AD222: 599.88/3 | AE222: 24 | AF222: K and up | AG222: Animals & Nature | AH222: English | AI222: Amicus | AJ222: Amicus Illustrated | AK222: 2018 | AL222: Elizabeth Raum | AM222: Romina Martí | AN222: J | AP222: AR Submitted | AR222: 560L
A223: Fall 2017 | B223: NEW | C223: 9781681512631 | D223: 9781681511733 | F223: Rabbits Dig Burrows | J223: Animal Builders | N223: 29.95 | O223: 20.95 | P223: 25.95 | R223: =R217 -> 0 | T223: =T217 -> 0 | V223: 0 | W223: 0 | X223: 0 | Y223: 0 | Z223: 0 | AA223: 0 | AC223: 21 | AD223: 599.32 | AE223: 24 | AF223: K and up | AG223: Animals & Nature | AH223: English | AI223: Amicus | AJ223: Amicus Illustrated | AK223: 2018 | AL223: Elizabeth Raum | AM223: Romina Martí | AN223: J | AP223: AR Submitted | AR223: 520L
F225: Complete HC Series of 6 | J225: Do You Really Want to Meet a Dinosaur? | N225: =SUM(N226:N231) -> 179.7 | O225: =SUM(O226:O231) -> 125.7 | P225: =SUM(P226:P231) -> 155.7 | AI225: Amicus
A226: Fall 2017 | B226: NEW | C226: 9781681512037 | D226: 9781681511139 | F226: Do You Really Want to Meet a Pterosaur? | J226: Do You Really Want to Meet a Dinosaur? | N226: 29.95 | O226: 20.95 | P226: 25.95 | R226: =R225 -> 0 | T226: =T225 -> 0 | V226: =R226 -> 0 | W226: =T226*2 -> 0 | X226: =SUM(V226:W226) -> 0 | Y226: =R226*O226 -> 0 | Z226: =T226*P226 -> 0 | AA226: =SUM(Y226:Z226) -> 0 | AC226: 21 | AD226: 567.918 | AE226: 24 | AF226: K and up | AG226: Animals & Nature | AH226: English | AI226: Amicus | AJ226: Amicus Illustrated | AK226: 2018 | AL226: Annette Bay Pimentel | AM226: Daniele Fabbri | AN226: J | AP226: AR Submitted | AR226: 560L
A227: Fall 2017 | B227: NEW | C227: 9781681512020 | D227: 9781681511122 | F227: Do You Really Want to Meet Apatosaurus? | J227: Do You Really Want to Meet a Dinosaur? | N227: 29.95 | O227: 20.95 | P227: 25.95 | R227: =R225 -> 0 | T227: =T225 -> 0 | V227: 0 | W227: 0 | X227: 0 | Y227: 0 | Z227: 0 | AA227: 0 | AC227: 21 | AD227: 567.913/8 | AE227: 24 | AF227: K and up | AG227: Animals & Nature | AH227: English | AI227: Amicus | AJ227: Amicus Illustrated | AK227: 2018 | AL227: Annette Bay Pimentel | AM227: Daniele Fabbri | AN227: J | AP227: AR Submitted | AR227: 500L
A228: Fall 2017 | B228: NEW | C228: 9781681512044 | D228: 9781681511146 | F228: Do You Really Want to Meet Stegosaurus? | J228: Do You Really Want to Meet a Dinosaur? | N228: 29.95 | O228: 20.95 | P228: 25.95 | R228: =R225 -> 0 | T228: =T225 -> 0 | V228: 0 | W228: 0 | X228: 0 | Y228: 0 | Z228: 0 | AA228: 0 | AC228: 21 | AD228: 567.915/3 | AE228: 24 | AF228: K and up | AG228: Animals & Nature | AH228: English | AI228: Amicus | AJ228: Amicus Illustrated | AK228: 2018 | AL228: Annette Bay Pimentel | AM228: Daniele Fabbri | AN228: J | AP228: AR Submitted | AR228: 560L
A229: Fall 2017 | B229: NEW | C229: 9781681512051 | D229: 9781681511153 | F229: Do You Really Want to Meet Triceratops? | J229: Do You Really Want to Meet a Dinosaur? | N229: 29.95 | O229: 20.95 | P229: 25.95 | R229: =R225 -> 0 | T229: =T225 -> 0 | V229: 0 | W229: 0 | X229: 0 | Y229: 0 | Z229: 0 | AA229: 0 | AC229: 21 | AD229: 567.915/8 | AE229: 24 | AF229: K and up | AG229: Animals & Nature | AH229: English | AI229: Amicus | AJ229: Amicus Illustrated | AK229: 2018 | AL229: Annette Bay Pimentel | AM229: Daniele Fabbri | AN229: J | AP229: AR Submitted | AR229: 530L
A230: Fall 2017 | B230: NEW | C230: 9781681512068 | D230: 9781681511160 | F230: Do You Really Want to Meet Tyrannosaurus Rex? | J230: Do You Really Want to Meet a Dinosaur? | N230: 29.95 | O230: 20.95 | P230: 25.95 | R230: =R225 -> 0 | T230: =T225 -> 0 | V230: 0 | W230: 0 | X230: 0 | Y230: 0 | Z230: 0 | AA230: 0 | AC230: 21 | AD230: 567.912/9 | AE230: 24 | AF230: K and up | AG230: Animals & Nature | AH230: English | AI230: Amicus | AJ230: Amicus Illustrated | AK230: 2018 | AL230: Annette Bay Pimentel | AM230: Daniele Fabbri | AN230: J | AP230: AR Submitted | AR230: 560L
A231: Fall 2017 | B231: NEW | C231: 9781681512075 | D231: 9781681511177 | F231: Do You Really Want to Meet Velociraptor? | J231: Do You Really Want to Meet a Dinosaur? | N231: 29.95 | O231: 20.95 | P231: 25.95 | R231: =R225 -> 0 | T231: =T225 -> 0 | V231: 0 | W231: 0 | X231: 0 | Y231: 0 | Z231: 0 | AA231: 0 | AC231: 21 | AD231: 567.912 | AE231: 24 | AF231: K and up | AG231: Animals & Nature | AH231: English | AI231: Amicus | AJ231: Amicus Illustrated | AK231: 2018 | AL231: Annette Bay Pimentel | AM231: Daniele Fabbri | AN231: J | AP231: AR Submitted | AR231: 540L
F233: Complete HC Series of 8 | J233: Weird and Unusual Animals | N233: =SUM(N234:N241) -> 239.6 | O233: =SUM(O234:O241) -> 167.6 | P233: =SUM(P234:P241) -> 207.6 | AI233: Amicus
A234: Fall 2017 | B234: NEW | C234: 9781681512440 | D234: 9781681511542 | F234: Axolotls | J234: Weird and Unusual Animals | N234: 29.95 | O234: 20.95 | P234: 25.95 | R234: =R233 -> 0 | T234: =T233 -> 0 | V234: =R234 -> 0 | W234: =T234*2 -> 0 | X234: =SUM(V234:W234) -> 0 | Y234: =R234*O234 -> 0 | Z234: =T234*P234 -> 0 | AA234: =SUM(Y234:Z234) -> 0 | AC234: 22 | AD234: 597.8/5 | AE234: 24 | AF234: 1 and up | AG234: Animals & Nature | AH234: English | AI234: Amicus | AJ234: Amicus High Interest | AK234: 2018 | AL234: Karen Latchana Kenney | AN234: I | AP234: AR Submitted | AR234: 450L
A235: Fall 2017 | B235: NEW | C235: 9781681512457 | D235: 9781681511559 | F235: Capybaras | J235: Weird and Unusual Animals | N235: 29.95 | O235: 20.95 | P235: 25.95 | R235: =R233 -> 0 | T235: =T233 -> 0 | V235: 0 | W235: 0 | X235: 0 | Y235: 0 | Z235: 0 | AA235: 0 | AC235: 22 | AD235: 599.35/9 | AE235: 24 | AF235: 1 and up | AG235: Animals & Nature | AH235: English | AI235: Amicus | AJ235: Amicus High Interest | AK235: 2018 | AL235: Allan Morey | AN235: I | AP235: AR Submitted | AR235: 440L
A236: Fall 2017 | B236: NEW | C236: 9781681512464 | D236: 9781681511566 | F236: Flying Dragons | J236: Weird and Unusual Animals | N236: 29.95 | O236: 20.95 | P236: 25.95 | R236: =R233 -> 0 | T236: =T233 -> 0 | V236: 0 | W236: 0 | X236: 0 | Y236: 0 | Z236: 0 | AA236: 0 | AC236: 22 | AD236: 597.95/5 | AE236: 24 | AF236: 1 and up | AG236: Animals & Nature | AH236: English | AI236: Amicus | AJ236: Amicus High Interest | AK236: 2018 | AL236: Karen Latchana Kenney | AN236: I | AP236: AR Submitted | AR236: 450L
A237: Fall 2017 | B237: NEW | C237: 9781681512471 | D237: 9781681511573 | F237: Frilled Lizards | J237: Weird and Unusual Animals | N237: 29.95 | O237: 20.95 | P237: 25.95 | R237: =R233 -> 0 | T237: =T233 -> 0 | V237: 0 | W237: 0 | X237: 0 | Y237: 0 | Z237: 0 | AA237: 0 | AC237: 22 | AD237: 597/.61 | AE237: 24 | AF237: 1 and up | AG237: Animals & Nature | AH237: English | AI237: Amicus | AJ237: Amicus High Interest | AK237: 2018 | AL237: Allan Morey | AN237: I | AP237: AR Submitted | AR237: 450L
A238: Fall 2017 | B238: NEW | C238: 9781681512488 | D238: 9781681511580 | F238: Japanese Spider Crabs | J238: Weird and Unusual Animals | N238: 29.95 | O238: 20.95 | P238: 25.95 | R238: =R233 -> 0 | T238: =T233 -> 0 | V238: 0 | W238: 0 | X238: 0 | Y238: 0 | Z238: 0 | AA238: 0 | AC238: 22 | AD238: 595.3/86 | AE238: 24 | AF238: 1 and up | AG238: Animals & Nature | AH238: English | AI238: Amicus | AJ238: Amicus High Interest | AK238: 2018 | AL238: Wendy Perkins | AN238: I | AP238: AR Submitted | AR238: 470L
A239: Fall 2017 | B239: NEW | C239: 9781681512501 | D239: 9781681511603 | F239: Sea Cucumbers | J239: Weird and Unusual Animals | N239: 29.95 | O239: 20.95 | P239: 25.95 | R239: =R233 -> 0 | T239: =T233 -> 0 | V239: 0 | W239: 0 | X239: 0 | Y239: 0 | Z239: 0 | AA239: 0 | AC239: 22 | AD239: 593.9/6 | AE239: 24 | AF239: 1 and up | AG239: Animals & Nature | AH239: English | AI239: Amicus | AJ239: Amicus High Interest | AK239: 2018 | AL239: Wendy Perkins | AN239: I | AP239: AR Submitted | AR239: 480L
A240: Fall 2017 | B240: NEW | C240: 9781681512495 | D240: 9781681511597 | F240: Sea Dragons | J240: Weird and Unusual Animals | N240: 29.95 | O240: 20.95 | P240: 25.95 | R240: =R233 -> 0 | T240: =T233 -> 0 | V240: 0 | W240: 0 | X240: 0 | Y240: 0 | Z240: 0 | AA240: 0 | AC240: 22 | AD240: 597/.679 | AE240: 24 | AF240: 1 and up | AG240: Animals & Nature | AH240: English | AI240: Amicus | AJ240: Amicus High Interest | AK240: 2018 | AL240: Wendy Perkins | AN240: I | AP240: AR Submitted | AR240: 450L
A241: Fall 2017 | B241: NEW | C241: 9781681512518 | D241: 9781681511610 | F241: Star-nosed Moles | J241: Weird and Unusual Animals | N241: 29.95 | O241: 20.95 | P241: 25.95 | R241: =R233 -> 0 | T241: =T233 -> 0 | V241: 0 | W241: 0 | X241: 0 | Y241: 0 | Z241: 0 | AA241: 0 | AC241: 22 | AD241: 599.33/5 | AE241: 24 | AF241: 1 and up | AG241: Animals & Nature | AH241: English | AI241: Amicus | AJ241: Amicus High Interest | AK241: 2018 | AL241: Wendy Perkins | AN241: I | AP241: AR Submitted | AR241: 490L
F244: Complete HC Series of 8 | J244: Favorite Dog Breeds | N244: =SUM(N245:N252) -> 239.6 | O244: =SUM(O245:O252) -> 167.6 | P244: =SUM(P245:P252) -> 207.6 | AI244: Amicus
A245: Fall 2017 | B245: NEW | C245: 9781681512143 | D245: 9781681511245 | F245: Beagles | J245: Favorite Dog Breeds | N245: 29.95 | O245: 20.95 | P245: 25.95 | R245: =R244 -> 0 | T245: =T244 -> 0 | V245: =R245 -> 0 | W245: =T245*2 -> 0 | X245: =SUM(V245:W245) -> 0 | Y245: =R245*O245 -> 0 | Z245: =T245*P245 -> 0 | AA245: =SUM(Y245:Z245) -> 0 | AC245: 22 | AD245: 636.753/7 | AE245: 24 | AF245: 1 and up | AG245: Animals & Nature | AH245: English | AI245: Amicus | AJ245: Amicus High Interest | AK245: 2018 | AL245: Martha E. H. Rustad | AN245: I | AP245: AR Submitted | AR245: 460L
A246: Fall 2017 | B246: NEW | C246: 9781681512150 | D246: 9781681511252 | F246: Boxers | J246: Favorite Dog Breeds | N246: 29.95 | O246: 20.95 | P246: 25.95 | R246: =R244 -> 0 | T246: =T244 -> 0 | V246: 0 | W246: 0 | X246: 0 | Y246: 0 | Z246: 0 | AA246: 0 | AC246: 22 | AD246: 636.73 | AE246: 24 | AF246: 1 and up | AG246: Animals & Nature | AH246: English | AI246: Amicus | AJ246: Amicus High Interest | AK246: 2018 | AL246: Martha E. H. Rustad | AN246: I | AP246: AR Submitted | AR246: 430L
A247: Fall 2017 | B247: NEW | C247: 9781681512167 | D247: 9781681511269 | F247: Bulldogs | J247: Favorite Dog Breeds | N247: 29.95 | O247: 20.95 | P247: 25.95 | R247: =R244 -> 0 | T247: =T244 -> 0 | V247: 0 | W247: 0 | X247: 0 | Y247: 0 | Z247: 0 | AA247: 0 | AC247: 22 | AD247: 636.72 | AE247: 24 | AF247: 1 and up | AG247: Animals & Nature | AH247: English | AI247: Amicus | AJ247: Amicus High Interest | AK247: 2018 | AL247: Martha E. H. Rustad | AN247: I | AP247: AR Submitted | AR247: 420L
A248: Fall 2017 | B248: NEW | C248: 9781681512174 | D248: 9781681511276 | F248: German Shepherds | J248: Favorite Dog Breeds | N248: 29.95 | O248: 20.95 | P248: 25.95 | R248: =R244 -> 0 | T248: =T244 -> 0 | V248: 0 | W248: 0 | X248: 0 | Y248: 0 | Z248: 0 | AA248: 0 | AC248: 22 | AD248: 636.737/6 | AE248: 24 | AF248: 1 and up | AG248: Animals & Nature | AH248: English | AI248: Amicus | AJ248: Amicus High Interest | AK248: 2018 | AL248: Martha E. H. Rustad | AN248: I | AP248: AR Submitted | AR248: 480L
A249: Fall 2017 | B249: NEW | C249: 9781681512181 | D249: 9781681511283 | F249: Labrador Retrievers | J249: Favorite Dog Breeds | N249: 29.95 | O249: 20.95 | P249: 25.95 | R249: =R244 -> 0 | T249: =T244 -> 0 | V249: 0 | W249: 0 | X249: 0 | Y249: 0 | Z249: 0 | AA249: 0 | AC249: 22 | AD249: 636.752/7 | AE249: 24 | AF249: 1 and up | AG249: Animals & Nature | AH249: English | AI249: Amicus | AJ249: Amicus High Interest | AK249: 2018 | AL249: Martha E. H. Rustad | AN249: I | AP249: AR Submitted | AR249: 490L
A250: Fall 2017 | B250: NEW | C250: 9781681512198 | D250: 9781681511290 | F250: Poodles | J250: Favorite Dog Breeds | N250: 29.95 | O250: 20.95 | P250: 25.95 | R250: =R244 -> 0 | T250: =T244 -> 0 | V250: 0 | W250: 0 | X250: 0 | Y250: 0 | Z250: 0 | AA250: 0 | AC250: 22 | AD250: 636.72/8 | AE250: 24 | AF250: 1 and up | AG250: Animals & Nature | AH250: English | AI250: Amicus | AJ250: Amicus High Interest | AK250: 2018 | AL250: Martha E. H. Rustad | AN250: I | AP250: AR Submitted | AR250: 480L
A251: Fall 2017 | B251: NEW | C251: 9781681512204 | D251: 9781681511306 | F251: Saint Bernards | J251: Favorite Dog Breeds | N251: 29.95 | O251: 20.95 | P251: 25.95 | R251: =R244 -> 0 | T251: =T244 -> 0 | V251: 0 | W251: 0 | X251: 0 | Y251: 0 | Z251: 0 | AA251: 0 | AC251: 22 | AD251: 636.73 | AE251: 24 | AF251: 1 and up | AG251: Animals & Nature | AH251: English | AI251: Amicus | AJ251: Amicus High Interest | AK251: 2018 | AL251: Martha E. H. Rustad | AN251: I | AP251: AR Submitted | AR251: 460L
A252: Fall 2017 | B252: NEW | C252: 9781681512211 | D252: 9781681511313 | F252: Scottish Terriers | J252: Favorite Dog Breeds | N252: 29.95 | O252: 20.95 | P252: 25.95 | R252: =R244 -> 0 | T252: =T244 -> 0 | V252: 0 | W252: 0 | X252: 0 | Y252: 0 | Z252: 0 | AA252: 0 | AC252: 22 | AD252: 636.755 | AE252: 24 | AF252: 1 and up | AG252: Animals & Nature | AH252: English | AI252: Amicus | AJ252: Amicus High Interest | AK252: 2018 | AL252: Martha E. H. Rustad | AN252: I | AP252: AR Submitted | AR252: 490L
F254: Complete HC Series of 6 | J254: Winter Olympic Sports | N254: =SUM(N255:N260) -> 179.7 | O254: =SUM(O255:O260) -> 125.7 | P254: =SUM(P255:P260) -> 155.7 | AI254: Amicus
... 1800 more rows
